Workbook

Sheet Option Profit Calculator
I2: Option Strategy Template | N2: Important Note: This template works with Options Data/Chains from MarketXLS.com, if you do not have or want MarketXLS, you may need to adjust the formulaes and VBA in this template. This template is completely open and password free.
N5: Want MarketXLS? | P5: Book a demo here. | S5: Look at the prices here
F7: Enter symbol here >> | H7: AAPL
F8: Current Price >> | H8: 290.47 | I8: * Use =qm_StreamLast for Real Time Streaming Prices, use =Last for Last price
K9: last | L9: ask | M9: bid | O9: contractvolume | R9: delta | S9: gamma | T9: theta | U9: rho | AD9: =setChartAxis("Option Profit Calculator","Chart 9","Min","X","Primary",MIN($AM$26:$AM$4999)) -> X Primary Min: 270
E10: Legs | F10: Expiry Date | G10: Strike | H10: Direction | I10: Position | J10: Instrument | K10: Last | L10: Ask | M10: Bid | N10: Limit Order Price | O10: Spread | P10: Volume | Q10: Units* | R10: Investment | S10: Sign | T10: Deal price | U10: Initial CF | V10: Final CF | W10: Profit/Loss | AD10: =setChartAxis("Option Profit Calculator","Chart 9","Min","Value","Y",MIN($AM$26:$AM$5000)) -> Value Y Min: 270
B11: Pre-defined Strategies | I11: Buy | J11: Stock | K11: =H8 -> 290.47 | L11: =_xll.Ask(symbol) -> 310.91 | M11: =_xll.Bid(symbol) -> 310.89 | O11: =IFERROR(L11-M11,"") -> 0.02 | P11: =_xll.Volume(symbol) -> 4965699 | Q11: 1 | R11: =IF(I11<>"",Q11*T11*S11,0) -> 310.89 | S11: =IF(I11=Lists!$N$2,1,IF(I11=Lists!$N$3,-1,0)) -> 1 | T11: =IF(N11="",IF(I11=Lists!$N$2,M11,IF(I11=Lists!$N$3,L11,K11)),N11) -> 310.89 | U11: =R11 -> 310.89 | V11: =IF(I11<>"",IF(H11=Lists!$C$1,MAX(0,ExpiryPrice-G11),IF(H11=Lists!$C$2,MAX(0,G11-ExpiryPrice),ExpiryPrice)),0)*Q11*S11 -> 300 | W11: =V11-U11 -> -10.89 | AD11: =setChartAxis("Option Profit Calculator","Chart 9","Max","X","Primary",MAX($AM$26:$AM$4999)) -> X Primary Max: 327.5
B12: Type | C12: Bullish | E12: 1 | F12: 2020-01-24 | G12: 280 | H12: Call | I12: Buy | J12: ="@"&LEFT(symbol&" ",6)&RIGHT(YEAR(F12),2)&IF(LEN(MONTH(F12))=1,"0"&MONTH(F12),MONTH(F12))& IF(LEN(DAY(F12))=1,"0"&DAY(F12),DAY(F12)) &LEFT(H12,1)&LEFT("00"&INT(G12),5)&IF(G12-INT(G12)=0,"000",LEFT(RIGHT(G12-INT(G12)&"00",6)*1000000,3)) -> @AAPL 200124C00280000 | K12: =IFERROR(VLOOKUP($J12,Table1[[#All],[symbolstring]:[vega]],MATCH(K$9,Table1[#Headers],0)-1,0),"") -> 20.3 | L12: =IFERROR(VLOOKUP($J12,Table1[[#All],[symbolstring]:[vega]],MATCH(L$9,Table1[#Headers],0)-1,0),"") -> 20.55 | M12: =IFERROR(VLOOKUP($J12,Table1[[#All],[symbolstring]:[vega]],MATCH(M$9,Table1[#Headers],0)-1,0),"") -> 20.35 | N12: 10.5 | O12: 0.2 | P12: =IFERROR(VLOOKUP($J12,Table1[[#All],[symbolstring]:[vega]],MATCH(O$9,Table1[#Headers],0)-1,0),"") -> 81 | Q12: 100 | R12: =IF(I12<>"",Q12*T12*S12,0) -> 1050 | S12: =IF(I12=Lists!$N$2,1,IF(I12=Lists!$N$3,-1,0)) -> 1 | T12: =IF(N12="",IF(I12=Lists!$N$2,M12,IF(I12=Lists!$N$3,L12,K12)),N12) -> 10.5 | U12: =R12 -> 1050 | V12: =IF(I12<>"",IF(H12=Lists!$C$1,MAX(0,ExpiryPrice-G12),IF(H12=Lists!$C$2,MAX(0,G12-ExpiryPrice),ExpiryPrice)),0)*Q12*S12 -> 2000 | W12: =V12-U12 -> 950 | AD12: =setChartAxis("Option Profit Calculator","Chart 9","Max","Value","Y",MAX($AM$26:$AM$5000)) -> Value Y Max: 327.5
B13: Strategy | C13: Long Call | E13: 2 | F13: 2020-01-31 | G13: 277.5 | H13: Call | I13: Sell | J13: @AAPL 200131C00277500 | K13: =IFERROR(VLOOKUP($J13,Table1[[#All],[symbolstring]:[vega]],MATCH(K$9,Table1[#Headers],0)-1,0),"") -> 23.95 | L13: =IFERROR(VLOOKUP($J13,Table1[[#All],[symbolstring]:[vega]],MATCH(L$9,Table1[#Headers],0)-1,0),"") -> 24.7 | M13: =IFERROR(VLOOKUP($J13,Table1[[#All],[symbolstring]:[vega]],MATCH(M$9,Table1[#Headers],0)-1,0),"") -> 24.45 | O13: 0.25 | P13: =IFERROR(VLOOKUP($J13,Table1[[#All],[symbolstring]:[vega]],MATCH(O$9,Table1[#Headers],0)-1,0),"") -> 22 | Q13: 10 | R13: -247 | S13: =IF(I13=Lists!$N$2,1,IF(I13=Lists!$N$3,-1,0)) -> -1 | T13: =IF(N13="",IF(I13=Lists!$N$2,M13,IF(I13=Lists!$N$3,L13,K13)),N13) -> 24.7 | U13: -247 | V13: =IF(I13<>"",IF(H13=Lists!$C$1,MAX(0,ExpiryPrice-G13),IF(H13=Lists!$C$2,MAX(0,G13-ExpiryPrice),ExpiryPrice)),0)*Q13*S13 -> -225 | W13: 22 | AD13: =setChartRange("Option Profit Calculator","Chart 9") -> Done
B14: Strikes | C14: 5 | E14: 3 | F14: 2020-01-31 | G14: 282.5 | H14: Put | I14: Sell | J14: @AAPL 200131P00282500 | K14: =IFERROR(VLOOKUP($J14,Table1[[#All],[symbolstring]:[vega]],MATCH(K$9,Table1[#Headers],0)-1,0),"") -> 3.7 | L14: =IFERROR(VLOOKUP($J14,Table1[[#All],[symbolstring]:[vega]],MATCH(L$9,Table1[#Headers],0)-1,0),"") -> 3.75 | M14: =IFERROR(VLOOKUP($J14,Table1[[#All],[symbolstring]:[vega]],MATCH(M$9,Table1[#Headers],0)-1,0),"") -> 3.65 | O14: 0.1 | P14: =IFERROR(VLOOKUP($J14,Table1[[#All],[symbolstring]:[vega]],MATCH(O$9,Table1[#Headers],0)-1,0),"") -> 108 | Q14: 10 | R14: -37.5 | S14: =IF(I14=Lists!$N$2,1,IF(I14=Lists!$N$3,-1,0)) -> -1 | T14: =IF(N14="",IF(I14=Lists!$N$2,M14,IF(I14=Lists!$N$3,L14,K14)),N14) -> 3.75 | U14: -37.5 | V14: =IF(I14<>"",IF(H14=Lists!$C$1,MAX(0,ExpiryPrice-G14),IF(H14=Lists!$C$2,MAX(0,G14-ExpiryPrice),ExpiryPrice)),0)*Q14*S14 -> 0 | W14: 37.5
B15: Legs | C15: 1 | E15: 4 | J15: @AAPL 000100000000 | K15: =IFERROR(VLOOKUP($J15,Table1[[#All],[symbolstring]:[vega]],MATCH(K$9,Table1[#Headers],0)-1,0),"") ->  | L15: =IFERROR(VLOOKUP($J15,Table1[[#All],[symbolstring]:[vega]],MATCH(L$9,Table1[#Headers],0)-1,0),"") ->  | M15: =IFERROR(VLOOKUP($J15,Table1[[#All],[symbolstring]:[vega]],MATCH(M$9,Table1[#Headers],0)-1,0),"") ->  | P15: =IFERROR(VLOOKUP($J15,Table1[[#All],[symbolstring]:[vega]],MATCH(O$9,Table1[#Headers],0)-1,0),"") ->  | R15: 0 | S15: =IF(I15=Lists!$N$2,1,IF(I15=Lists!$N$3,-1,0)) -> 0 | T15: =IF(N15="",IF(I15=Lists!$N$2,M15,IF(I15=Lists!$N$3,L15,K15)),N15) ->  | U15: 0 | V15: =IF(I15<>"",IF(H15=Lists!$C$1,MAX(0,ExpiryPrice-G15),IF(H15=Lists!$C$2,MAX(0,G15-ExpiryPrice),ExpiryPrice)),0)*Q15*S15 -> 0 | W15: 0
E16: 5 | J16: @AAPL 000100000000 | K16: =IFERROR(VLOOKUP($J16,Table1[[#All],[symbolstring]:[vega]],MATCH(K$9,Table1[#Headers],0)-1,0),"") ->  | L16: =IFERROR(VLOOKUP($J16,Table1[[#All],[symbolstring]:[vega]],MATCH(L$9,Table1[#Headers],0)-1,0),"") ->  | M16: =IFERROR(VLOOKUP($J16,Table1[[#All],[symbolstring]:[vega]],MATCH(M$9,Table1[#Headers],0)-1,0),"") ->  | P16: =IFERROR(VLOOKUP($J16,Table1[[#All],[symbolstring]:[vega]],MATCH(O$9,Table1[#Headers],0)-1,0),"") ->  | R16: 0 | S16: =IF(I16=Lists!$N$2,1,IF(I16=Lists!$N$3,-1,0)) -> 0 | T16: =IF(N16="",IF(I16=Lists!$N$2,M16,IF(I16=Lists!$N$3,L16,K16)),N16) ->  | U16: 0 | V16: =IF(I16<>"",IF(H16=Lists!$C$1,MAX(0,ExpiryPrice-G16),IF(H16=Lists!$C$2,MAX(0,G16-ExpiryPrice),ExpiryPrice)),0)*Q16*S16 -> 0 | W16: 0
E17: 6 | J17: @AAPL 000100000000 | K17: =IFERROR(VLOOKUP($J17,Table1[[#All],[symbolstring]:[vega]],MATCH(K$9,Table1[#Headers],0)-1,0),"") ->  | L17: =IFERROR(VLOOKUP($J17,Table1[[#All],[symbolstring]:[vega]],MATCH(L$9,Table1[#Headers],0)-1,0),"") ->  | M17: =IFERROR(VLOOKUP($J17,Table1[[#All],[symbolstring]:[vega]],MATCH(M$9,Table1[#Headers],0)-1,0),"") ->  | P17: =IFERROR(VLOOKUP($J17,Table1[[#All],[symbolstring]:[vega]],MATCH(O$9,Table1[#Headers],0)-1,0),"") ->  | R17: 0 | S17: =IF(I17=Lists!$N$2,1,IF(I17=Lists!$N$3,-1,0)) -> 0 | T17: =IF(N17="",IF(I17=Lists!$N$2,M17,IF(I17=Lists!$N$3,L17,K17)),N17) ->  | U17: 0 | V17: =IF(I17<>"",IF(H17=Lists!$C$1,MAX(0,ExpiryPrice-G17),IF(H17=Lists!$C$2,MAX(0,G17-ExpiryPrice),ExpiryPrice)),0)*Q17*S17 -> 0 | W17: 0
Q18: Net Investment: | R18: =SUM(R11:R17) -> 1076.39 | U18: =SUM(U11:U17) -> 1076.39 | V18: =SUM(V11:V17) -> 2075 | W18: =SUM(W11:W17) -> 998.61
B19: Custom Strategies | J19: Scenario Calculation
B20: Type | C20: Strikes | J20: Price (At Expiry) | K20: 300
B21: Bearish | C21: 11 | J21: Profit/Loss | K21: =W18 -> 998.61
B22: Strategy
B23: Short + Caller | AM23: Stock Price At Expiry | AN23: Position Profit
F24: symbolstring | G24: datetime | H24: last | I24: change | J24: changepercent | K24: tick | L24: open | M24: high | N24: low | O24: prevclose | P24: bid | Q24: ask | R24: bidsize | S24: asksize | T24: contractvolume | U24: lasttradedatetime | V24: callput | W24: expirydate | X24: strike | Y24: openinterest | Z24: contracthigh | AA24: contractlow | AB24: type | AC24: delta | AD24: gamma | AE24: theta | AF24: rho | AG24: vega | AH24: impvol | AI24: Column30 | AJ24: Column31 | AK24: Column32 | AN24: =K21 -> 998.61
A25: =N25 -> 0.05 | F25: @AAPL 200110P00270000 | G25: 2020-01-06T13:47:59-05:00 | H25: 0.07 | I25: -0.11 | J25: -61.1111 | K25: -1 | L25: 0.24 | M25: 0.24 | N25: 0.05 | O25: 0.18 | P25: 0.05 | Q25: 0.07 | R25: 43 | S25: 205 | T25: 746 | U25: 2020-01-06T13:24:28 | V25: Put | W25: 2020-01-10 | X25: 270 | Y25: 4098 | Z25: 15.0100002 | AA25: 0.109999999 | AB25: WEEK | AC25: -0.01818 | AD25: 0.00286 | AE25: -0.09839 | AF25: -0.00055 | AG25: 0.03167 | AH25: 0.36892 | AM25: 0 | AN25: -3901.39
A26: =N26 -> 24.35 | F26: @AAPL 200110C00270000 | G26: 2020-01-06T13:47:59-05:00 | H26: 29.04 | I26: 0.59 | J26: 2.0738 | K26: 0 | L26: 24.35 | M26: 29.1 | N26: 24.35 | O26: 28.45 | P26: 29.15 | Q26: 29.3 | R26: 20 | S26: 175 | T26: 86 | U26: 2020-01-06T13:45:59 | V26: Call | W26: 2020-01-10 | X26: 270 | Y26: 994 | Z26: 30.6499996 | AA26: 2.8499999 | AB26: WEEK | AC26: 0.9999 | AD26: 0 | AE26: -0.11157 | AF26: 0.03022 | AG26: 0 | AH26: 0.05176 | AM26: =IF(Lists!Q4=0,"",Lists!Q4) -> 270 | AN26: -931.39
A27: 0.07 | F27: @AAPL 200110P00272500 | G27: 2020-01-06T13:47:59-05:00 | H27: 0.08 | I27: -0.13 | J27: -61.9048 | K27: 0 | L27: 0.25 | M27: 0.25 | N27: 0.07 | O27: 0.21 | P27: 0.07 | Q27: 0.08 | R27: 8 | S27: 172 | T27: 1949 | U27: 2020-01-06T13:45:26 | V27: Put | W27: 2020-01-10 | X27: 272.5 | Y27: 4247 | Z27: 17.1200008 | AA27: 0.14 | AB27: WEEK | AC27: -0.01311 | AD27: 0.00253 | AE27: -0.06029 | AF27: -0.00044 | AG27: 0.00783 | AH27: 0.36897 | AM27: =IF(Lists!Q5=0,"",Lists!Q5) -> 272.5 | AN27: -903.89
A28: 24.05 | F28: @AAPL 200110C00272500 | G28: 2020-01-06T13:47:59-05:00 | H28: 25.68 | I28: -1.4 | J28: -5.1699 | K28: 1 | L28: 24.05 | M28: 25.68 | N28: 24.05 | O28: 27.08 | P28: 26.65 | Q28: 26.8 | R28: 22 | S28: 167 | T28: 45 | U28: 2020-01-06T10:52:00 | V28: Call | W28: 2020-01-10 | X28: 272.5 | Y28: 1058 | Z28: 27.8500003 | AA28: 2.33999991 | AB28: WEEK | AC28: 0.9999 | AD28: 0 | AE28: -0.11269 | AF28: 0.03049 | AG28: 0 | AH28: 0.02022 | AM28: =IF(Lists!Q6=0,"",Lists!Q6) -> 275 | AN28: -876.39
A29: 0.01 | F29: @AAPL 200110P00275000 | G29: 2020-01-06T13:47:59-05:00 | H29: 0.09 | I29: -0.18 | J29: -66.6667 | K29: 1 | L29: 0.31 | M29: 0.39 | N29: 0.01 | O29: 0.27 | P29: 0.08 | Q29: 0.09 | R29: 69 | S29: 62 | T29: 2604 | U29: 2020-01-06T13:45:56 | V29: Put | W29: 2020-01-10 | X29: 275 | Y29: 5128 | Z29: 19.1200008 | AA29: 0.170000001 | AB29: WEEK | AC29: -0.01473 | AD29: 0.00305 | AE29: -0.0628 | AF29: -0.00049 | AG29: 0.00784 | AH29: 0.36271 | AM29: =IF(Lists!Q7=0,"",Lists!Q7) -> 277.5 | AN29: -848.89
A30: 18.5 | F30: @AAPL 200110C00275000 | G30: 2020-01-06T13:47:59-05:00 | H30: 24.06 | I30: 0.87 | J30: 3.7516 | K30: 0 | L30: 18.5 | M30: 24.59 | N30: 18.5 | O30: 23.19 | P30: 24.15 | Q30: 24.3 | R30: 52 | S30: 154 | T30: 51 | U30: 2020-01-06T13:45:59 | V30: Call | W30: 2020-01-10 | X30: 275 | Y30: 1463 | Z30: 25.6800003 | AA30: 1.75999999 | AB30: WEEK | AC30: 0.9999 | AD30: 0 | AE30: -0.11381 | AF30: 0.03077 | AG30: 0 | AH30: 0.05176 | AM30: =IF(Lists!Q8=0,"",Lists!Q8) -> 280 | AN30: -846.39
A31: 0.12 | F31: @AAPL 200110P00277500 | G31: 2020-01-06T13:47:59-05:00 | H31: 0.12 | I31: -0.19 | J31: -61.2903 | K31: 0 | L31: 0.49 | M31: 0.51 | N31: 0.12 | O31: 0.31 | P31: 0.11 | Q31: 0.12 | R31: 4 | S31: 221 | T31: 1172 | U31: 2020-01-06T13:31:08 | V31: Put | W31: 2020-01-10 | X31: 277.5 | Y31: 1428 | Z31: 16.6299991 | AA31: 0.219999998 | AB31: WEEK | AC31: -0.01917 | AD31: 0.00404 | AE31: -0.07456 | AF31: -0.00058 | AG31: 0.03152 | AH31: 0.35567 | AM31: =IF(Lists!Q9=0,"",Lists!Q9) -> 282.5 | AN31: -593.89
A32: 15.3 | F32: @AAPL 200110C00277500 | G32: 2020-01-06T13:47:59-05:00 | H32: 20.95 | I32: -0.11 | J32: -0.522317 | K32: 0 | L32: 16.5 | M32: 20.95 | N32: 15.3 | O32: 21.06 | P32: 21.7 | Q32: 21.85 | R32: 15 | S32: 183 | T32: 40 | U32: 2020-01-06T13:06:30 | V32: Call | W32: 2020-01-10 | X32: 277.5 | Y32: 485 | Z32: 23.1000003 | AA32: 1.44000005 | AB32: WEEK | AC32: 0.9999 | AD32: 0 | AE32: -0.11493 | AF32: 0.03105 | AG32: 0 | AH32: 0.03235 | AM32: =IF(Lists!Q10=0,"",Lists!Q10) -> 285 | AN32: -366.39
A33: 0.14 | F33: @AAPL 200110P00280000 | G33: 2020-01-06T13:47:59-05:00 | H33: 0.14 | I33: -0.26 | J33: -65 | K33: 0 | L33: 0.49 | M33: 0.74 | N33: 0.14 | O33: 0.4 | P33: 0.14 | Q33: 0.15 | R33: 119 | S33: 88 | T33: 6895 | U33: 2020-01-06T13:47:50 | V33: Put | W33: 2020-01-10 | X33: 280 | Y33: 12186 | Z33: 16.1800003 | AA33: 0.289999991 | AB33: WEEK | AC33: -0.03668 | AD33: 0.00692 | AE33: -0.11942 | AF33: -0.00118 | AG33: 0.03181 | AH33: 0.3334 | AM33: =IF(Lists!Q11=0,"",Lists!Q11) -> 287.5 | AN33: -138.89
A34: 13.91 | F34: @AAPL 200110C00280000 | G34: 2020-01-06T13:47:59-05:00 | H34: 19.08 | I34: 0.78 | J34: 4.2623 | K34: 1 | L34: 15.3 | M34: 19.8 | N34: 13.91 | O34: 18.3 | P34: 19.25 | Q34: 19.35 | R34: 10 | S34: 117 | T34: 540 | U34: 2020-01-06T13:28:15 | V34: Call | W34: 2020-01-10 | X34: 280 | Y34: 2479 | Z34: 21.0400009 | AA34: 1.14999997 | AB34: WEEK | AC34: 0.9999 | AD34: 0 | AE34: -0.11605 | AF34: 0.03133 | AG34: 0 | AH34: 0.01264 | AM34: =IF(Lists!Q12=0,"",Lists!Q12) -> 290 | AN34: 88.61
A35: 0.19 | F35: @AAPL 200110P00282500 | G35: 2020-01-06T13:47:59-05:00 | H35: 0.19 | I35: -0.33 | J35: -63.4615 | K35: 0 | L35: 0.85 | M35: 1.05 | N35: 0.19 | O35: 0.52 | P35: 0.19 | Q35: 0.2 | R35: 134 | S35: 160 | T35: 2296 | U35: 2020-01-06T13:47:50 | V35: Put | W35: 2020-01-10 | X35: 282.5 | Y35: 8065 | Z35: 10.8500003 | AA35: 0.379999995 | AB35: WEEK | AC35: -0.04152 | AD35: 0.00863 | AE35: -0.1175 | AF35: -0.00134 | AG35: 0.03177 | AH35: 0.32444 | AM35: =IF(Lists!Q13=0,"",Lists!Q13) -> 292.5 | AN35: 316.11
A36: 11.8 | F36: @AAPL 200110C00282500 | G36: 2020-01-06T13:47:59-05:00 | H36: 16.55 | I36: 0.4 | J36: 2.4768 | K36: 1 | L36: 11.8 | M36: 17.25 | N36: 11.8 | O36: 16.15 | P36: 16.8 | Q36: 16.9 | R36: 10 | S36: 109 | T36: 227 | U36: 2020-01-06T13:36:04 | V36: Call | W36: 2020-01-10 | X36: 282.5 | Y36: 1950 | Z36: 18.6200008 | AA36: 1.08000004 | AB36: WEEK | AC36: 0.9999 | AD36: 0 | AE36: -0.11717 | AF36: 0.03161 | AG36: 0 | AH36: 0.3528 | AM36: =IF(Lists!Q14=0,"",Lists!Q14) -> 295 | AN36: 543.61
A37: 0.29 | F37: @AAPL 200110P00285000 | G37: 2020-01-06T13:47:59-05:00 | H37: 0.29 | I37: -0.46 | J37: -61.3333 | K37: 0 | L37: 1 | M37: 1.42 | N37: 0.29 | O37: 0.75 | P37: 0.28 | Q37: 0.29 | R37: 120 | S37: 56 | T37: 3850 | U37: 2020-01-06T13:47:48 | V37: Put | W37: 2020-01-10 | X37: 285 | Y37: 7118 | Z37: 18.9899997 | AA37: 0.51999998 | AB37: WEEK | AC37: -0.07194 | AD37: 0.01356 | AE37: -0.19672 | AF37: -0.00237 | AG37: 0.03248 | AH37: 0.29004 | AM37: =IF(Lists!Q15=0,"",Lists!Q15) -> 297.5 | AN37: 771.11
A38: 9.33 | F38: @AAPL 200110C00285000 | G38: 2020-01-06T13:47:59-05:00 | H38: 14.22 | I38: 0.67 | J38: 4.9446 | K38: 0 | L38: 9.33 | M38: 15.1 | N38: 9.33 | O38: 13.55 | P38: 14.35 | Q38: 14.5 | R38: 95 | S38: 153 | T38: 2444 | U38: 2020-01-06T13:28:02 | V38: Call | W38: 2020-01-10 | X38: 285 | Y38: 2713 | Z38: 16.2999992 | AA38: 0.639999985 | AB38: WEEK | AC38: 0.9999 | AD38: 0 | AE38: -0.11829 | AF38: 0.03189 | AG38: 0 | AH38: 0.11387 | AM38: =IF(Lists!Q16=0,"",Lists!Q16) -> 300 | AN38: 998.61
A39: 0.44 | F39: @AAPL 200110P00287500 | G39: 2020-01-06T13:47:59-05:00 | H39: 0.44 | I39: -0.59 | J39: -57.2816 | K39: -1 | L39: 1.9 | M39: 2 | N39: 0.44 | O39: 1.03 | P39: 0.43 | Q39: 0.44 | R39: 136 | S39: 12 | T39: 3837 | U39: 2020-01-06T13:47:57 | V39: Put | W39: 2020-01-10 | X39: 287.5 | Y39: 3489 | Z39: 23.6000003 | AA39: 0.730000019 | AB39: WEEK | AC39: -0.07816 | AD39: 0.01706 | AE39: -0.18151 | AF39: -0.00242 | AG39: 0.0566 | AH39: 0.24961 | AM39: =IF(Lists!Q17=0,"",Lists!Q17) -> 302.5 | AN39: 1226.11
A40: 8.42 | F40: @AAPL 200110C00287500 | G40: 2020-01-06T13:47:59-05:00 | H40: 12.15 | I40: 0.75 | J40: 6.5789 | K40: 1 | L40: 8.42 | M40: 12.75 | N40: 8.42 | O40: 11.4 | P40: 12 | Q40: 12.15 | R40: 233 | S40: 135 | T40: 569 | U40: 2020-01-06T13:47:49 | V40: Call | W40: 2020-01-10 | X40: 287.5 | Y40: 1909 | Z40: 14.0500001 | AA40: 0.810000002 | AB40: WEEK | AC40: 0.9249 | AD40: 0.01693 | AE40: -0.28794 | AF40: 0.02964 | AG40: 0.03221 | AH40: 0.25804 | AM40: =IF(Lists!Q18=0,"",Lists!Q18) -> 305 | AN40: 1453.61
A41: 0.7 | F41: @AAPL 200110P00290000 | G41: 2020-01-06T13:47:59-05:00 | H41: 0.7 | I41: -1.5 | J41: -68.1818 | K41: 0 | L41: 2.35 | M41: 2.85 | N41: 0.7 | O41: 2.2 | P41: 0.69 | Q41: 0.7 | R41: 170 | S41: 7 | T41: 11292 | U41: 2020-01-06T13:47:57 | V41: Put | W41: 2020-01-10 | X41: 290 | Y41: 12139 | Z41: 17.8999996 | AA41: 1.04999995 | AB41: WEEK | AC41: -0.15529 | AD41: 0.02598 | AE41: -0.28894 | AF41: -0.00487 | AG41: 0.0771 | AH41: 0.27882 | AM41: =IF(Lists!Q19=0,"",Lists!Q19) -> 307.5 | AN41: 1681.11
A42: 5.55 | F42: @AAPL 200110C00290000 | G42: 2020-01-06T13:47:59-05:00 | H42: 9.72 | I42: 0.47 | J42: 5.0811 | K42: 0 | L42: 5.88 | M42: 10.55 | N42: 5.55 | O42: 9.25 | P42: 9.8 | Q42: 9.9 | R42: 58 | S42: 17 | T42: 2657 | U42: 2020-01-06T13:46:31 | V42: Call | W42: 2020-01-10 | X42: 290 | Y42: 6584 | Z42: 11.8999996 | AA42: 0.469999998 | AB42: WEEK | AC42: 0.92767 | AD42: 0.02097 | AE42: -0.24651 | AF42: 0.03002 | AG42: 0.03174 | AH42: 0.23298 | AM42: =IF(Lists!Q20=0,"",Lists!Q20) -> 310 | AN42: 1908.61
A43: 1.12 | F43: @AAPL 200110P00292500 | G43: 2020-01-06T13:47:59-05:00 | H43: 1.12 | I43: -0.99 | J43: -46.9194 | K43: -1 | L43: 3.3 | M43: 4 | N43: 1.12 | O43: 2.11 | P43: 1.12 | Q43: 1.14 | R43: 87 | S43: 23 | T43: 8786 | U43: 2020-01-06T13:47:57 | V43: Put | W43: 2020-01-10 | X43: 292.5 | Y43: 4678 | Z43: 13.3000001 | AA43: 1.50999999 | AB43: WEEK | AC43: -0.18827 | AD43: 0.03572 | AE43: -0.27495 | AF43: -0.00598 | AG43: 0.07743 | AH43: 0.29329 | AM43: =IF(Lists!Q21=0,"",Lists!Q21) -> 312.5 | AN43: 2136.11
A44: 4.38 | F44: @AAPL 200110C00292500 | G44: 2020-01-06T13:47:59-05:00 | H44: 7.79 | I44: 0.54 | J44: 7.4483 | K44: 1 | L44: 4.38 | M44: 8.6 | N44: 4.38 | O44: 7.25 | P44: 7.75 | Q44: 7.85 | R44: 37 | S44: 155 | T44: 2762 | U44: 2020-01-06T13:47:07 | V44: Call | W44: 2020-01-10 | X44: 292.5 | Y44: 9405 | Z44: 9.89999961 | AA44: 0.349999994 | AB44: WEEK | AC44: 0.78928 | AD44: 0.0343 | AE44: -0.45995 | AF44: 0.02557 | AG44: 0.07812 | AH44: 0.25742 | AM44: =IF(Lists!Q22=0,"",Lists!Q22) -> 315 | AN44: 2363.61
A45: 1.77 | F45: @AAPL 200110P00295000 | G45: 2020-01-06T13:47:59-05:00 | H45: 1.77 | I45: -1.18 | J45: -40 | K45: -1 | L45: 4.5 | M45: 5.22 | N45: 1.77 | O45: 2.95 | P45: 1.77 | Q45: 1.79 | R45: 25 | S45: 14 | T45: 15327 | U45: 2020-01-06T13:47:48 | V45: Put | W45: 2020-01-10 | X45: 295 | Y45: 7410 | Z45: 12 | AA45: 2.17000007 | AB45: WEEK | AC45: -0.31882 | AD45: 0.03813 | AE45: -0.44274 | AF45: -0.00938 | AG45: 0.11983 | AH45: 0.27798 | AM45: =IF(Lists!Q23=0,"",Lists!Q23) -> 317.5 | AN45: 2591.11
A46: 3 | F46: @AAPL 200110C00295000 | G46: 2020-01-06T13:47:59-05:00 | H46: 5.95 | I46: 0.1 | J46: 1.7094 | K46: 0 | L46: 3.23 | M46: 6.7 | N46: 3 | O46: 5.85 | P46: 5.9 | Q46: 6 | R46: 30 | S46: 243 | T46: 14575 | U46: 2020-01-06T13:47:40 | V46: Call | W46: 2020-01-10 | X46: 295 | Y46: 4953 | Z46: 8.01000022 | AA46: 0.25999999 | AB46: WEEK | AC46: 0.70128 | AD46: 0.04048 | AE46: -0.51057 | AF46: 0.02283 | AG46: 0.11928 | AH46: 0.19779 | AM46: =IF(Lists!Q24=0,"",Lists!Q24) -> 320 | AN46: 2818.61
A47: 2.7 | F47: @AAPL 200110P00297500 | G47: 2020-01-06T13:47:59-05:00 | H47: 2.7 | I47: -1.37 | J47: -33.6609 | K47: 0 | L47: 5.7 | M47: 6.7 | N47: 2.7 | O47: 4.07 | P47: 2.68 | Q47: 2.71 | R47: 23 | S47: 47 | T47: 6974 | U47: 2020-01-06T13:47:05 | V47: Put | W47: 2020-01-10 | X47: 297.5 | Y47: 4254 | Z47: 12.3500003 | AA47: 3.04999995 | AB47: WEEK | AC47: -0.4117 | AD47: 0.0463 | AE47: -0.43712 | AF47: -0.01236 | AG47: 0.12161 | AH47: 0.27894 | AM47: =IF(Lists!Q25=0,"",Lists!Q25) -> 322.5 | AN47: 3046.11
A48: 2 | F48: @AAPL 200110C00297500 | G48: 2020-01-06T13:47:59-05:00 | H48: 4.35 | I48: 0.15 | J48: 3.5714 | K48: 0 | L48: 2.75 | M48: 5.15 | N48: 2 | O48: 4.2 | P48: 4.3 | Q48: 4.4 | R48: 219 | S48: 158 | T48: 18234 | U48: 2020-01-06T13:47:15 | V48: Call | W48: 2020-01-10 | X48: 297.5 | Y48: 6558 | Z48: 6.36999988 | AA48: 0.27000001 | AB48: WEEK | AC48: 0.60234 | AD48: 0.05052 | AE48: -0.49851 | AF48: 0.01973 | AG48: 0.12123 | AH48: 0.22711 | AM48: =IF(Lists!Q26=0,"",Lists!Q26) -> 325 | AN48: 3273.61
A49: 3.89 | F49: @AAPL 200110P00300000 | G49: 2020-01-06T13:47:59-05:00 | H49: 3.89 | I49: -1.61 | J49: -29.2727 | K49: -1 | L49: 7.8 | M49: 9 | N49: 3.89 | O49: 5.5 | P49: 3.85 | Q49: 3.95 | R49: 241 | S49: 172 | T49: 3905 | U49: 2020-01-06T13:47:17 | V49: Put | W49: 2020-01-10 | X49: 300 | Y49: 4721 | Z49: 29.6200008 | AA49: 4.15000009 | AB49: WEEK | AC49: -0.537 | AD49: 0.0539 | AE49: -0.38468 | AF49: -0.01397 | AG49: 0.124 | AH49: 0.27755 | AM49: =IF(Lists!Q27=0,"",Lists!Q27) -> 327.5 | AN49: =IFERROR(VLOOKUP(AM49,#REF!,10,0),"") -> 
A50: 1.27 | F50: @AAPL 200110C00300000 | G50: 2020-01-06T13:47:59-05:00 | H50: 3.1 | I50: 0 | J50: 0 | K50: 0 | L50: 1.41 | M50: 3.82 | N50: 1.27 | O50: 3.1 | P50: 3.05 | Q50: 3.1 | R50: 30 | S50: 174 | T50: 31111 | U50: 2020-01-06T13:47:57 | V50: Call | W50: 2020-01-10 | X50: 300 | Y50: 27464 | Z50: 4.9499998 | AA50: 0.200000002 | AB50: WEEK | AC50: 0.48013 | AD50: 0.05282 | AE50: -0.50318 | AF50: 0.01579 | AG50: 0.12393 | AH50: 0.2573 | AM50: =IF(Lists!Q28=0,"",Lists!Q28) ->  | AN50: =IFERROR(VLOOKUP(AM50,#REF!,10,0),"") -> 
A51: 5.5 | F51: @AAPL 200110P00302500 | G51: 2020-01-06T13:47:59-05:00 | H51: 5.61 | I51: -1.34 | J51: -19.2806 | K51: -1 | L51: 10.1 | M51: 10.25 | N51: 5.5 | O51: 6.95 | P51: 5.35 | Q51: 5.45 | R51: 200 | S51: 63 | T51: 395 | U51: 2020-01-06T13:28:20 | V51: Put | W51: 2020-01-10 | X51: 302.5 | Y51: 1246 | Z51: 14.8500003 | AA51: 5.5 | AB51: WEEK | AC51: -0.62562 | AD51: 0.04195 | AE51: -0.4347 | AF51: -0.01633 | AG51: 0.1251 | AH51: 0.26675 | AM51: =IF(Lists!Q29=0,"",Lists!Q29) ->  | AN51: =IFERROR(VLOOKUP(AM51,#REF!,10,0),"") -> 
A52: 0.8 | F52: @AAPL 200110C00302500 | G52: 2020-01-06T13:47:59-05:00 | H52: 2.08 | I52: -0.12 | J52: -5.4545 | K52: 0 | L52: 0.99 | M52: 2.72 | N52: 0.8 | O52: 2.2 | P52: 2.05 | Q52: 2.07 | R52: 6 | S52: 43 | T52: 9857 | U52: 2020-01-06T13:47:50 | V52: Call | W52: 2020-01-10 | X52: 302.5 | Y52: 5056 | Z52: 3.75 | AA52: 0.170000001 | AB52: WEEK | AC52: 0.3661 | AD52: 0.04353 | AE52: -0.50466 | AF52: 0.01203 | AG52: 0.12616 | AH52: 0.24997 | AM52: =IF(Lists!Q30=0,"",Lists!Q30) ->  | AN52: =IFERROR(VLOOKUP(AM52,#REF!,10,0),"") -> 
A53: 7.3 | F53: @AAPL 200110P00305000 | G53: 2020-01-06T13:47:59-05:00 | H53: 7.45 | I53: -1.4 | J53: -15.8192 | K53: 0 | L53: 11.9 | M53: 12 | N53: 7.3 | O53: 8.85 | P53: 7.15 | Q53: 7.25 | R53: 48 | S53: 83 | T53: 500 | U53: 2020-01-06T13:34:44 | V53: Put | W53: 2020-01-10 | X53: 305 | Y53: 1156 | Z53: 31.3199996 | AA53: 7.15000009 | AB53: WEEK | AC53: -0.74263 | AD53: 0.04034 | AE53: -0.35788 | AF53: -0.01588 | AG53: 0.09233 | AH53: 0.28479 | AM53: =IF(Lists!Q31=0,"",Lists!Q31) ->  | AN53: =IFERROR(VLOOKUP(AM53,#REF!,10,0),"") -> 
A54: 0.6 | F54: @AAPL 200110C00305000 | G54: 2020-01-06T13:47:59-05:00 | H54: 1.35 | I54: -0.23 | J54: -14.557 | K54: 1 | L54: 0.6 | M54: 1.9 | N54: 0.6 | O54: 1.58 | P54: 1.34 | Q54: 1.35 | R54: 10 | S54: 84 | T54: 14511 | U54: 2020-01-06T13:47:45 | V54: Call | W54: 2020-01-10 | X54: 305 | Y54: 7031 | Z54: 2.80999994 | AA54: 0.14 | AB54: WEEK | AC54: 0.26084 | AD54: 0.03919 | AE54: -0.44233 | AF54: 0.0086 | AG54: 0.08566 | AH54: 0.21872 | AM54: =IF(Lists!Q32=0,"",Lists!Q32) ->  | AN54: =IFERROR(VLOOKUP(AM54,#REF!,10,0),"") -> 
A55: 9.3 | F55: @AAPL 200110P00307500 | G55: 2020-01-06T13:47:59-05:00 | H55: 9.5 | I55: -1.25 | J55: -11.6279 | K55: -1 | L55: 12.45 | M55: 13.1 | N55: 9.3 | O55: 10.75 | P55: 9.15 | Q55: 9.25 | R55: 116 | S55: 10 | T55: 187 | U55: 2020-01-06T13:18:22 | V55: Put | W55: 2020-01-10 | X55: 307.5 | Y55: 293 | Z55: 18.8500003 | AA55: 8.89999961 | AB55: WEEK | AC55: -0.81665 | AD55: 0.03246 | AE55: -0.26193 | AF55: -0.01762 | AG55: 0.08543 | AH55: 0.27178 | AM55: =IF(Lists!Q33=0,"",Lists!Q33) ->  | AN55: =IFERROR(VLOOKUP(AM55,#REF!,10,0),"") -> 
A56: 0.36 | F56: @AAPL 200110C00307500 | G56: 2020-01-06T13:47:59-05:00 | H56: 0.87 | I56: -0.2 | J56: -18.6916 | K56: 1 | L56: 0.36 | M56: 1.32 | N56: 0.36 | O56: 1.07 | P56: 0.85 | Q56: 0.86 | R56: 26 | S56: 21 | T56: 6943 | U56: 2020-01-06T13:47:25 | V56: Call | W56: 2020-01-10 | X56: 307.5 | Y56: 4183 | Z56: 2.04999995 | AA56: 0.170000001 | AB56: WEEK | AC56: 0.15591 | AD56: 0.0311 | AE56: -0.27306 | AF56: 0.00517 | AG56: 0.08832 | AH56: 0.21872 | AM56: =IF(Lists!Q34=0,"",Lists!Q34) ->  | AN56: =IFERROR(VLOOKUP(AM56,#REF!,10,0),"") -> 
A57: 11.15 | F57: @AAPL 200110P00310000 | G57: 2020-01-06T13:47:59-05:00 | H57: 11.4 | I57: -1.4 | J57: -10.9375 | K57: -1 | L57: 17.34 | M57: 17.4 | N57: 11.15 | O57: 12.8 | P57: 11.35 | Q57: 11.5 | R57: 33 | S57: 287 | T57: 864 | U57: 2020-01-06T13:47:18 | V57: Put | W57: 2020-01-10 | X57: 310 | Y57: 421 | Z57: 28.9400005 | AA57: 10.8000001 | AB57: WEEK | AC57: -0.86618 | AD57: 0.02567 | AE57: -0.23103 | AF57: -0.01653 | AG57: 0.08092 | AH57: 0.28189 | AM57: =IF(Lists!Q35=0,"",Lists!Q35) ->  | AN57: =IFERROR(VLOOKUP(AM57,#REF!,10,0),"") -> 
A58: 0.23 | F58: @AAPL 200110C00310000 | G58: 2020-01-06T13:47:59-05:00 | H58: 0.55 | I58: -0.2 | J58: -26.6667 | K58: 1 | L58: 0.23 | M58: 0.9 | N58: 0.23 | O58: 0.75 | P58: 0.55 | Q58: 0.56 | R58: 50 | S58: 149 | T58: 8397 | U58: 2020-01-06T13:47:26 | V58: Call | W58: 2020-01-10 | X58: 310 | Y58: 9028 | Z58: 1.49 | AA58: 0.029999999 | AB58: WEEK | AC58: 0.11757 | AD58: 0.02257 | AE58: -0.26342 | AF58: 0.00389 | AG58: 0.08854 | AH58: 0.28122 | AM58: =IF(Lists!Q36=0,"",Lists!Q36) ->  | AN58: =IFERROR(VLOOKUP(AM58,#REF!,10,0),"") -> 
A59: 0.27 | F59: @AAPL 200110C00312500 | G59: 2020-01-06T13:47:59-05:00 | H59: 0.36 | I59: -0.18 | J59: -33.3333 | K59: 0 | L59: 0.45 | M59: 0.61 | N59: 0.27 | O59: 0.54 | P59: 0.35 | Q59: 0.36 | R59: 40 | S59: 63 | T59: 4596 | U59: 2020-01-06T13:47:39 | V59: Call | W59: 2020-01-10 | X59: 312.5 | Y59: 3281 | Z59: 1.15999996 | AA59: 0.119999997 | AB59: WEEK | AC59: 0.11133 | AD59: 0.0184 | AE59: -0.30019 | AF59: 0.00368 | AG59: 0.0882 | AH59: 0.27997 | AM59: =IF(Lists!Q37=0,"",Lists!Q37) ->  | AN59: =IFERROR(VLOOKUP(AM59,#REF!,10,0),"") -> 
A60: 0.01 | F60: @AAPL 200110C00315000 | G60: 2020-01-06T13:47:59-05:00 | H60: 0.24 | I60: -0.16 | J60: -40 | K60: 1 | L60: 0.01 | M60: 0.42 | N60: 0.01 | O60: 0.4 | P60: 0.23 | Q60: 0.24 | R60: 111 | S60: 8 | T60: 8579 | U60: 2020-01-06T13:47:02 | V60: Call | W60: 2020-01-10 | X60: 315 | Y60: 2142 | Z60: 0.819999992 | AA60: 0.059999998 | AB60: WEEK | AC60: 0.06443 | AD60: 0.01268 | AE60: -0.17783 | AF60: 0.00213 | AG60: 0.03868 | AH60: 0.32982 | AM60: =IF(Lists!Q38=0,"",Lists!Q38) ->  | AN60: =IFERROR(VLOOKUP(AM60,#REF!,10,0),"") -> 
A61: 18.8 | F61: @AAPL 200110P00317500 | G61: 2020-01-06T13:47:59-05:00 | H61: 19.34 | I61: 0.14 | J61: 0.729167 | K61: 0 | L61: 18.8 | M61: 19.34 | N61: 18.8 | O61: 19.2 | P61: 18.45 | Q61: 18.65 | R61: 125 | S61: 186 | T61: 8 | U61: 2020-01-06T11:53:07 | V61: Put | W61: 2020-01-10 | X61: 317.5 | Y61: 15 | Z61: 29.3899993 | AA61: 17.6800003 | AB61: WEEK | AC61: -0.93455 | AD61: 0.01291 | AE61: -0.15322 | AF61: -0.01165 | AG61: 0.03631 | AH61: 0.31071 | AM61: =IF(Lists!Q39=0,"",Lists!Q39) ->  | AN61: =IFERROR(VLOOKUP(AM61,#REF!,10,0),"") -> 
A62: 0.14 | F62: @AAPL 200110C00317500 | G62: 2020-01-06T13:47:59-05:00 | H62: 0.16 | I62: -0.16 | J62: -50 | K62: 0 | L62: 0.22 | M62: 0.3 | N62: 0.14 | O62: 0.32 | P62: 0.16 | Q62: 0.17 | R62: 95 | S62: 1 | T62: 2595 | U62: 2020-01-06T13:45:50 | V62: Call | W62: 2020-01-10 | X62: 317.5 | Y62: 1871 | Z62: 0.670000016 | AA62: 0.100000001 | AB62: WEEK | AC62: 0.05508 | AD62: 0.01009 | AE62: -0.17024 | AF62: 0.00182 | AG62: 0.03872 | AH62: 0.27726 | AM62: =IF(Lists!Q40=0,"",Lists!Q40) ->  | AN62: =IFERROR(VLOOKUP(AM62,#REF!,10,0),"") -> 
A63: 21.25 | F63: @AAPL 200110P00320000 | G63: 2020-01-06T13:47:59-05:00 | H63: 22.35 | I63: -0.05 | J63: -0.223214 | K63: 0 | L63: 26.58 | M63: 26.58 | N63: 21.25 | O63: 22.4 | P63: 20.95 | Q63: 21.1 | R63: 153 | S63: 146 | T63: 77 | U63: 2020-01-06T12:40:11 | V63: Put | W63: 2020-01-10 | X63: 320 | Y63: 63 | Z63: 29.8500003 | AA63: 19.75 | AB63: WEEK | AC63: -0.95034 | AD63: 0.01039 | AE63: -0.12975 | AF63: -0.01062 | AG63: 0.0299 | AH63: 0.1325 | AM63: =IF(Lists!Q41=0,"",Lists!Q41) ->  | AN63: =IFERROR(VLOOKUP(AM63,#REF!,10,0),"") -> 
A64: 0.11 | F64: @AAPL 200110C00320000 | G64: 2020-01-06T13:47:59-05:00 | H64: 0.11 | I64: -0.12 | J64: -52.1739 | K64: -1 | L64: 0.15 | M64: 0.22 | N64: 0.11 | O64: 0.23 | P64: 0.11 | Q64: 0.12 | R64: 138 | S64: 1 | T64: 3628 | U64: 2020-01-06T13:43:32 | V64: Call | W64: 2020-01-10 | X64: 320 | Y64: 3693 | Z64: 0.579999983 | AA64: 0.009999999 | AB64: WEEK | AC64: 0.01791 | AD64: 0 | AE64: -0.0616 | AF64: 0.0006 | AG64: 0.00997 | AH64: 0.26591 | AM64: =IF(Lists!Q42=0,"",Lists!Q42) ->  | AN64: =IFERROR(VLOOKUP(AM64,#REF!,10,0),"") -> 
A65: 0.08 | F65: @AAPL 200110C00322500 | G65: 2020-01-06T13:47:59-05:00 | H65: 0.08 | I65: -0.11 | J65: -57.8947 | K65: -1 | L65: 0.13 | M65: 0.17 | N65: 0.08 | O65: 0.19 | P65: 0.08 | Q65: 0.09 | R65: 129 | S65: 2 | T65: 817 | U65: 2020-01-06T13:21:54 | V65: Call | W65: 2020-01-10 | X65: 322.5 | Y65: 4137 | Z65: 0.5 | AA65: 0.129999995 | AB65: WEEK | AC65: 0.01327 | AD65: 0 | AE65: -0.04807 | AF65: 0.00044 | AG65: 0.01003 | AH65: 0.32376 | AM65: =IF(Lists!Q43=0,"",Lists!Q43) ->  | AN65: =IFERROR(VLOOKUP(AM65,#REF!,10,0),"") -> 
A66: 30 | F66: @AAPL 200110P00325000 | G66: 2020-01-06T13:47:59-05:00 | H66: 30 | I66: 4 | J66: 15.3846 | K66: 1 | L66: 30 | M66: 30 | N66: 30 | O66: 26 | P66: 25.9 | Q66: 26.05 | R66: 140 | S66: 19 | T66: 1 | U66: 2020-01-06T09:43:52 | V66: Put | W66: 2020-01-10 | X66: 325 | Y66: 1 | Z66: 35.7000007 | AA66: 26 | AB66: WEEK | AC66: -1 | AD66: 0.00132 | AE66: 0 | AF66: 0 | AG66: 0 | AH66: 0.1325 | AM66: =IF(Lists!Q44=0,"",Lists!Q44) ->  | AN66: =IFERROR(VLOOKUP(AM66,#REF!,10,0),"") -> 
A67: 0.06 | F67: @AAPL 200110C00325000 | G67: 2020-01-06T13:47:59-05:00 | H67: 0.06 | I67: -0.1 | J67: -62.5 | K67: 0 | L67: 0.12 | M67: 0.15 | N67: 0.06 | O67: 0.16 | P67: 0.06 | Q67: 0.07 | R67: 103 | S67: 30 | T67: 4111 | U67: 2020-01-06T13:30:03 | V67: Call | W67: 2020-01-10 | X67: 325 | Y67: 7364 | Z67: 0.430000007 | AA67: 0.039999999 | AB67: WEEK | AC67: 0.01159 | AD67: 0 | AE67: -0.04541 | AF67: 0.00038 | AG67: 0.01003 | AH67: 0.33931 | AM67: =IF(Lists!Q45=0,"",Lists!Q45) ->  | AN67: =IFERROR(VLOOKUP(AM67,#REF!,10,0),"") -> 
A68: 0.05 | F68: @AAPL 200110C00327500 | G68: 2020-01-06T13:47:59-05:00 | H68: 0.05 | I68: -0.09 | J68: -64.2857 | K68: 0 | L68: 0.11 | M68: 0.11 | N68: 0.05 | O68: 0.14 | P68: 0.05 | Q68: 0.06 | R68: 3 | S68: 169 | T68: 383 | U68: 2020-01-06T13:40:57 | V68: Call | W68: 2020-01-10 | X68: 327.5 | Y68: 2950 | Z68: 0.379999995 | AA68: 0.090000003 | AB68: WEEK | AC68: 0.01539 | AD68: 0 | AE68: -0.0685 | AF68: 0.00051 | AG68: 0.00991 | AH68: 0.34809 | AM68: =IF(Lists!Q46=0,"",Lists!Q46) ->  | AN68: =IFERROR(VLOOKUP(AM68,#REF!,10,0),"") -> 
A69: 0.25 | F69: @AAPL 200117P00270000 | G69: 2020-01-06T13:47:59-05:00 | H69: 0.25 | I69: -0.19 | J69: -43.1818 | K69: 0 | L69: 0.95 | M69: 0.95 | N69: 0.25 | O69: 0.44 | P69: 0.24 | Q69: 0.25 | R69: 12 | S69: 135 | T69: 977 | U69: 2020-01-06T13:47:19 | V69: Put | W69: 2020-01-17 | X69: 270 | Y69: 10336 | Z69: 116.5 | AA69: 0.370000004 | AB69: STAN | AC69: -0.03927 | AD69: 0.00459 | AE69: -0.07324 | AF69: -0.00347 | AG69: 0.04917 | AH69: 0.33322 | AM69: =IF(Lists!Q47=0,"",Lists!Q47) ->  | AN69: =IFERROR(VLOOKUP(AM69,#REF!,10,0),"") -> 
A70: 21.45 | F70: @AAPL 200117C00270000 | G70: 2020-01-06T13:47:59-05:00 | H70: 29.34 | I70: 0.99 | J70: 3.4921 | K70: 0 | L70: 24.4 | M70: 30.01 | N70: 21.45 | O70: 28.35 | P70: 29.4 | Q70: 29.6 | R70: 67 | S70: 41 | T70: 340 | U70: 2020-01-06T13:45:59 | V70: Call | W70: 2020-01-17 | X70: 270 | Y70: 17478 | Z70: 31.0499992 | AA70: 0.289999991 | AB70: STAN | AC70: 0.99972 | AD70: 0 | AE70: -0.11126 | AF70: 0.08167 | AG70: 0 | AH70: 0.01264 | AM70: =IF(Lists!Q48=0,"",Lists!Q48) ->  | AN70: =IFERROR(VLOOKUP(AM70,#REF!,10,0),"") -> 
A71: 0.29 | F71: @AAPL 200117P00272500 | G71: 2020-01-06T13:47:59-05:00 | H71: 0.3 | I71: -0.23 | J71: -43.3962 | K71: 1 | L71: 0.7 | M71: 0.71 | N71: 0.29 | O71: 0.53 | P71: 0.28 | Q71: 0.3 | R71: 164 | S71: 219 | T71: 744 | U71: 2020-01-06T13:47:23 | V71: Put | W71: 2020-01-17 | X71: 272.5 | Y71: 3489 | Z71: 2.21000003 | AA71: 0.460000008 | AB71: STAN | AC71: -0.05105 | AD71: 0.00586 | AE71: -0.09033 | AF71: -0.00457 | AG71: 0.04972 | AH71: 0.31969 | AM71: =IF(Lists!Q49=0,"",Lists!Q49) ->  | AN71: =IFERROR(VLOOKUP(AM71,#REF!,10,0),"") -> 
A72: 25.94 | F72: @AAPL 200117C00272500 | G72: 2020-01-06T13:47:59-05:00 | H72: 25.94 | I72: -1.91 | J72: -6.8582 | K72: -1 | L72: 26.18 | M72: 27.4 | N72: 25.94 | O72: 27.85 | P72: 26.9 | Q72: 27.15 | R72: 36 | S72: 1 | T72: 25 | U72: 2020-01-06T12:34:48 | V72: Call | W72: 2020-01-17 | X72: 272.5 | Y72: 98 | Z72: 27.8500003 | AA72: 12.1000003 | AB72: STAN | AC72: 0.99972 | AD72: 0 | AE72: -0.11238 | AF72: 0.08242 | AG72: 0 | AH72: 0.01 | AM72: =IF(Lists!Q50=0,"",Lists!Q50) ->  | AN72: =IFERROR(VLOOKUP(AM72,#REF!,10,0),"") -> 
A73: 0.37 | F73: @AAPL 200117P00275000 | G73: 2020-01-06T13:47:59-05:00 | H73: 0.37 | I73: -0.25 | J73: -40.3226 | K73: 0 | L73: 0.78 | M73: 0.94 | N73: 0.37 | O73: 0.62 | P73: 0.35 | Q73: 0.36 | R73: 54 | S73: 41 | T73: 1230 | U73: 2020-01-06T13:47:03 | V73: Put | W73: 2020-01-17 | X73: 275 | Y73: 40797 | Z73: 50 | AA73: 0.529999971 | AB73: STAN | AC73: -0.05411 | AD73: 0.0067 | AE73: -0.08734 | AF73: -0.00484 | AG73: 0.04966 | AH73: 0.35219 | AM73: =IF(Lists!Q51=0,"",Lists!Q51) ->  | AN73: =IFERROR(VLOOKUP(AM73,#REF!,10,0),"") -> 
A74: 18.1 | F74: @AAPL 200117C00275000 | G74: 2020-01-06T13:47:59-05:00 | H74: 24.6 | I74: 0.8 | J74: 3.3613 | K74: 0 | L74: 20.15 | M74: 25.2 | N74: 18.1 | O74: 23.8 | P74: 24.55 | Q74: 24.7 | R74: 49 | S74: 41 | T74: 958 | U74: 2020-01-06T13:47:04 | V74: Call | W74: 2020-01-17 | X74: 275 | Y74: 42236 | Z74: 26.4099998 | AA74: 0.25 | AB74: STAN | AC74: 0.99972 | AD74: 0 | AE74: -0.11349 | AF74: 0.08318 | AG74: 0 | AH74: 0.1325 | AM74: =IF(Lists!Q52=0,"",Lists!Q52) ->  | AN74: =IFERROR(VLOOKUP(AM74,#REF!,10,0),"") -> 
A75: 0.45 | F75: @AAPL 200117P00277500 | G75: 2020-01-06T13:47:59-05:00 | H75: 0.45 | I75: -0.34 | J75: -43.038 | K75: -1 | L75: 1.22 | M75: 1.22 | N75: 0.45 | O75: 0.79 | P75: 0.45 | Q75: 0.46 | R75: 2 | S75: 164 | T75: 928 | U75: 2020-01-06T13:47:39 | V75: Put | W75: 2020-01-17 | X75: 277.5 | Y75: 1444 | Z75: 3.53999996 | AA75: 0.670000016 | AB75: STAN | AC75: -0.08579 | AD75: 0.00908 | AE75: -0.13838 | AF75: -0.00694 | AG75: 0.11943 | AH75: 0.30371 | AM75: =IF(Lists!Q53=0,"",Lists!Q53) ->  | AN75: =IFERROR(VLOOKUP(AM75,#REF!,10,0),"") -> 
A76: 19.1 | F76: @AAPL 200117C00277500 | G76: 2020-01-06T13:47:59-05:00 | H76: 22.2 | I76: 0.5 | J76: 2.3041 | K76: 0 | L76: 19.1 | M76: 22.62 | N76: 19.1 | O76: 21.7 | P76: 22.1 | Q76: 22.3 | R76: 187 | S76: 41 | T76: 41 | U76: 2020-01-06T13:47:04 | V76: Call | W76: 2020-01-17 | X76: 277.5 | Y76: 289 | Z76: 24 | AA76: 8.5 | AB76: STAN | AC76: 0.99972 | AD76: 0 | AE76: -0.11462 | AF76: 0.08393 | AG76: 0 | AH76: 0.1325 | AM76: =IF(Lists!Q54=0,"",Lists!Q54) ->  | AN76: =IFERROR(VLOOKUP(AM76,#REF!,10,0),"") -> 
A77: 0.6 | F77: @AAPL 200117P00280000 | G77: 2020-01-06T13:47:59-05:00 | H77: 0.6 | I77: -0.36 | J77: -37.5 | K77: 0 | L77: 1.5 | M77: 1.6 | N77: 0.6 | O77: 0.96 | P77: 0.58 | Q77: 0.59 | R77: 4 | S77: 69 | T77: 2392 | U77: 2020-01-06T13:47:39 | V77: Put | W77: 2020-01-17 | X77: 280 | Y77: 33296 | Z77: 126.849998 | AA77: 0.800000011 | AB77: STAN | AC77: -0.06586 | AD77: 0.00931 | AE77: -0.08892 | AF77: -0.00581 | AG77: 0.05091 | AH77: 0.26635 | AM77: =IF(Lists!Q55=0,"",Lists!Q55) ->  | AN77: =IFERROR(VLOOKUP(AM77,#REF!,10,0),"") -> 
A78: 14.6 | F78: @AAPL 200117C00280000 | G78: 2020-01-06T13:47:59-05:00 | H78: 19.7 | I78: 0.72 | J78: 3.7935 | K78: -1 | L78: 15.5 | M78: 20.5 | N78: 14.6 | O78: 18.98 | P78: 19.75 | Q78: 19.9 | R78: 95 | S78: 7 | T78: 2951 | U78: 2020-01-06T13:44:03 | V78: Call | W78: 2020-01-17 | X78: 280 | Y78: 37825 | Z78: 21.75 | AA78: 0.200000002 | AB78: STAN | AC78: 0.99972 | AD78: 0 | AE78: -0.11573 | AF78: 0.08469 | AG78: 0 | AH78: 0.05176 | AM78: =IF(Lists!Q56=0,"",Lists!Q56) ->  | AN78: =IFERROR(VLOOKUP(AM78,#REF!,10,0),"") -> 
A79: 0.79 | F79: @AAPL 200117P00282500 | G79: 2020-01-06T13:47:59-05:00 | H79: 0.79 | I79: -0.47 | J79: -37.3016 | K79: 0 | L79: 1.87 | M79: 1.95 | N79: 0.79 | O79: 1.26 | P79: 0.77 | Q79: 0.78 | R79: 3 | S79: 48 | T79: 793 | U79: 2020-01-06T13:47:02 | V79: Put | W79: 2020-01-17 | X79: 282.5 | Y79: 3775 | Z79: 5.75 | AA79: 1.04999995 | AB79: STAN | AC79: -0.07258 | AD79: 0.01119 | AE79: -0.08831 | AF79: -0.0057 | AG79: 0.09963 | AH79: 0.25781 | AM79: =IF(Lists!Q57=0,"",Lists!Q57) ->  | AN79: =IFERROR(VLOOKUP(AM79,#REF!,10,0),"") -> 
A80: 12.7 | F80: @AAPL 200117C00282500 | G80: 2020-01-06T13:47:59-05:00 | H80: 17.24 | I80: 0.39 | J80: 2.3145 | K80: -1 | L80: 12.7 | M80: 17.35 | N80: 12.7 | O80: 16.85 | P80: 17.5 | Q80: 17.6 | R80: 11 | S80: 45 | T80: 80 | U80: 2020-01-06T13:26:16 | V80: Call | W80: 2020-01-17 | X80: 282.5 | Y80: 1292 | Z80: 19.2000007 | AA80: 4.9499998 | AB80: STAN | AC80: 0.99972 | AD80: 0 | AE80: -0.11684 | AF80: 0.08545 | AG80: 0 | AH80: 0.17676 | AM80: =IF(Lists!Q58=0,"",Lists!Q58) ->  | AN80: =IFERROR(VLOOKUP(AM80,#REF!,10,0),"") -> 
A81: 1.04 | F81: @AAPL 200117P00285000 | G81: 2020-01-06T13:47:59-05:00 | H81: 1.04 | I81: -0.57 | J81: -35.4037 | K81: -1 | L81: 2.2 | M81: 2.75 | N81: 1.04 | O81: 1.61 | P81: 1.03 | Q81: 1.04 | R81: 54 | S81: 7 | T81: 4616 | U81: 2020-01-06T13:47:38 | V81: Put | W81: 2020-01-17 | X81: 285 | Y81: 16678 | Z81: 58 | AA81: 1.33000004 | AB81: STAN | AC81: -0.14342 | AD81: 0.01589 | AE81: -0.15027 | AF81: -0.01227 | AG81: 0.12113 | AH81: 0.24961 | AM81: =IF(Lists!Q59=0,"",Lists!Q59) ->  | AN81: =IFERROR(VLOOKUP(AM81,#REF!,10,0),"") -> 
A82: 10.5 | F82: @AAPL 200117C00285000 | G82: 2020-01-06T13:47:59-05:00 | H82: 15.3 | I82: 0.75 | J82: 5.1546 | K82: 1 | L82: 11.29 | M82: 16 | N82: 10.5 | O82: 14.55 | P82: 15.25 | Q82: 15.4 | R82: 68 | S82: 111 | T82: 1247 | U82: 2020-01-06T13:47:04 | V82: Call | W82: 2020-01-17 | X82: 285 | Y82: 13719 | Z82: 17.2199993 | AA82: 0.200000002 | AB82: STAN | AC82: 0.93167 | AD82: 0.01274 | AE82: -0.18534 | AF82: 0.07997 | AG82: 0.08036 | AH82: 0.20762 | AM82: =IF(Lists!Q60=0,"",Lists!Q60) ->  | AN82: =IFERROR(VLOOKUP(AM82,#REF!,10,0),"") -> 
A83: 1.46 | F83: @AAPL 200117P00287500 | G83: 2020-01-06T13:47:59-05:00 | H83: 1.46 | I83: -0.74 | J83: -33.6364 | K83: 0 | L83: 2 | M83: 3.82 | N83: 1.46 | O83: 2.2 | P83: 1.4 | Q83: 1.41 | R83: 99 | S83: 1 | T83: 1027 | U83: 2020-01-06T13:41:48 | V83: Put | W83: 2020-01-17 | X83: 287.5 | Y83: 6556 | Z83: 7.61999988 | AA83: 1.74 | AB83: STAN | AC83: -0.15763 | AD83: 0.01919 | AE83: -0.1408 | AF83: -0.01341 | AG83: 0.12147 | AH83: 0.28086 | AM83: =IF(Lists!Q61=0,"",Lists!Q61) ->  | AN83: =IFERROR(VLOOKUP(AM83,#REF!,10,0),"") -> 
A84: 9 | F84: @AAPL 200117C00287500 | G84: 2020-01-06T13:47:59-05:00 | H84: 13.2 | I84: 0.6 | J84: 4.7619 | K84: 1 | L84: 9 | M84: 13.88 | N84: 9 | O84: 12.6 | P84: 13.1 | Q84: 13.25 | R84: 129 | S84: 106 | T84: 286 | U84: 2020-01-06T13:47:21 | V84: Call | W84: 2020-01-17 | X84: 287.5 | Y84: 1298 | Z84: 14.8500003 | AA84: 2.82999992 | AB84: STAN | AC84: 0.88772 | AD84: 0.01783 | AE84: -0.20941 | AF84: 0.07666 | AG84: 0.11669 | AH84: 0.20227 | AM84: =IF(Lists!Q62=0,"",Lists!Q62) ->  | AN84: =IFERROR(VLOOKUP(AM84,#REF!,10,0),"") -> 
A85: 1.9 | F85: @AAPL 200117P00290000 | G85: 2020-01-06T13:47:59-05:00 | H85: 1.9 | I85: -0.8 | J85: -29.6296 | K85: 0 | L85: 3.75 | M85: 4.3 | N85: 1.9 | O85: 2.7 | P85: 1.9 | Q85: 1.91 | R85: 55 | S85: 1 | T85: 6288 | U85: 2020-01-06T13:47:51 | V85: Put | W85: 2020-01-17 | X85: 290 | Y85: 13685 | Z85: 119.519996 | AA85: 2.23000001 | AB85: STAN | AC85: -0.20499 | AD85: 0.02358 | AE85: -0.17157 | AF85: -0.01709 | AG85: 0.12816 | AH85: 0.26478 | AM85: =IF(Lists!Q63=0,"",Lists!Q63) ->  | AN85: =IFERROR(VLOOKUP(AM85,#REF!,10,0),"") -> 
A86: 6.4 | F86: @AAPL 200117C00290000 | G86: 2020-01-06T13:47:59-05:00 | H86: 11.25 | I86: 0.75 | J86: 7.1429 | K86: 1 | L86: 8 | M86: 11.95 | N86: 6.4 | O86: 10.5 | P86: 11.15 | Q86: 11.25 | R86: 39 | S86: 92 | T86: 5084 | U86: 2020-01-06T13:47:48 | V86: Call | W86: 2020-01-17 | X86: 290 | Y86: 15949 | Z86: 13.1499996 | AA86: 0.14 | AB86: STAN | AC86: 0.86342 | AD86: 0.02339 | AE86: -0.20841 | AF86: 0.07521 | AG86: 0.11691 | AH86: 0.17939 | AM86: =IF(Lists!Q64=0,"",Lists!Q64) ->  | AN86: =IFERROR(VLOOKUP(AM86,#REF!,10,0),"") -> 
A87: 2.55 | F87: @AAPL 200117P00292500 | G87: 2020-01-06T13:47:59-05:00 | H87: 2.55 | I87: -1.04 | J87: -28.9694 | K87: -1 | L87: 4.3 | M87: 5.2 | N87: 2.55 | O87: 3.59 | P87: 2.55 | Q87: 2.57 | R87: 23 | S87: 11 | T87: 1493 | U87: 2020-01-06T13:47:58 | V87: Put | W87: 2020-01-17 | X87: 292.5 | Y87: 2442 | Z87: 12.6999998 | AA87: 2.88000011 | AB87: STAN | AC87: -0.3023 | AD87: 0.02379 | AE87: -0.23854 | AF87: -0.02389 | AG87: 0.19307 | AH87: 0.28021 | AM87: =IF(Lists!Q65=0,"",Lists!Q65) ->  | AN87: =IFERROR(VLOOKUP(AM87,#REF!,10,0),"") -> 
A88: 4.8 | F88: @AAPL 200117C00292500 | G88: 2020-01-06T13:47:59-05:00 | H88: 9.26 | I88: 0.26 | J88: 2.8889 | K88: 1 | L88: 6.52 | M88: 10 | N88: 4.8 | O88: 9 | P88: 9.3 | Q88: 9.4 | R88: 50 | S88: 103 | T88: 635 | U88: 2020-01-06T13:31:20 | V88: Call | W88: 2020-01-17 | X88: 292.5 | Y88: 3620 | Z88: 11.3500003 | AA88: 1.69000005 | AB88: STAN | AC88: 0.76231 | AD88: 0.02835 | AE88: -0.27799 | AF88: 0.06651 | AG88: 0.18745 | AH88: 0.23029 | AM88: =IF(Lists!Q66=0,"",Lists!Q66) ->  | AN88: =IFERROR(VLOOKUP(AM88,#REF!,10,0),"") -> 
A89: 3.45 | F89: @AAPL 200117P00295000 | G89: 2020-01-06T13:47:59-05:00 | H89: 3.45 | I89: -1.08 | J89: -23.8411 | K89: -1 | L89: 6.2 | M89: 6.5 | N89: 3.45 | O89: 4.53 | P89: 3.35 | Q89: 3.4 | R89: 155 | S89: 21 | T89: 6173 | U89: 2020-01-06T13:44:08 | V89: Put | W89: 2020-01-17 | X89: 295 | Y89: 4123 | Z89: 38.3499984 | AA89: 3.67000007 | AB89: STAN | AC89: -0.3473 | AD89: 0.03027 | AE89: -0.20295 | AF89: -0.02797 | AG89: 0.1948 | AH89: 0.24769 | AM89: =IF(Lists!Q67=0,"",Lists!Q67) ->  | AN89: =IFERROR(VLOOKUP(AM89,#REF!,10,0),"") -> 
A90: =N90 -> 4.5 | F90: @AAPL 200117C00295000 | G90: 2020-01-06T13:47:59-05:00 | H90: 7.65 | I90: 0.32 | J90: 4.3656 | K90: 0 | L90: 5.8 | M90: 8.43 | N90: 4.5 | O90: 7.33 | P90: 7.6 | Q90: 7.7 | R90: 137 | S90: 39 | T90: 2463 | U90: 2020-01-06T13:38:26 | V90: Call | W90: 2020-01-17 | X90: 295 | Y90: 10689 | Z90: 9.60000038 | AA90: 0.379999995 | AB90: STAN | AC90: 0.68298 | AD90: 0.03204 | AE90: -0.2881 | AF90: 0.05982 | AG90: 0.1925 | AH90: 0.21158 | AM90: =IF(Lists!Q68=0,"",Lists!Q68) ->  | AN90: =IFERROR(VLOOKUP(AM90,#REF!,10,0),"") -> 
A91: 4.49 | F91: @AAPL 200117P00297500 | G91: 2020-01-06T13:47:59-05:00 | H91: 4.49 | I91: -1.03 | J91: -18.6594 | K91: -1 | L91: 6.5 | M91: 8.19 | N91: 4.49 | O91: 5.52 | P91: 4.35 | Q91: 4.45 | R91: 235 | S91: 106 | T91: 2709 | U91: 2020-01-06T13:45:44 | V91: Put | W91: 2020-01-17 | X91: 297.5 | Y91: 2555 | Z91: 15.9300003 | AA91: 4.61999988 | AB91: STAN | AC91: -0.42992 | AD91: 0.02967 | AE91: -0.25152 | AF91: -0.03187 | AG91: 0.19963 | AH91: 0.24769 | AM91: =IF(Lists!Q69=0,"",Lists!Q69) ->  | AN91: =IFERROR(VLOOKUP(AM91,#REF!,10,0),"") -> 
A92: 3.2 | F92: @AAPL 200117C00297500 | G92: 2020-01-06T13:47:59-05:00 | H92: 6.2 | I92: 0.28 | J92: 4.7297 | K92: 1 | L92: 4.25 | M92: 6.95 | N92: 3.2 | O92: 5.92 | P92: 6.15 | Q92: 6.25 | R92: 50 | S92: 194 | T92: 7170 | U92: 2020-01-06T13:47:48 | V92: Call | W92: 2020-01-17 | X92: 297.5 | Y92: 3554 | Z92: 8.05000019 | AA92: 0.980000019 | AB92: STAN | AC92: 0.59984 | AD92: 0.03516 | AE92: -0.30349 | AF92: 0.05277 | AG92: 0.19792 | AH92: 0.22918 | AM92: =IF(Lists!Q70=0,"",Lists!Q70) ->  | AN92: =IFERROR(VLOOKUP(AM92,#REF!,10,0),"") -> 
A93: 5.65 | F93: @AAPL 200117P00300000 | G93: 2020-01-06T13:47:59-05:00 | H93: 5.65 | I93: -1.31 | J93: -18.8218 | K93: -1 | L93: 9 | M93: 9.8 | N93: 5.65 | O93: 6.96 | P93: 5.6 | Q93: 5.65 | R93: 16 | S93: 54 | T93: 3267 | U93: 2020-01-06T13:47:04 | V93: Put | W93: 2020-01-17 | X93: 300 | Y93: 6079 | Z93: 143.699996 | AA93: 5.5999999 | AB93: STAN | AC93: -0.49758 | AD93: 0.03033 | AE93: -0.25312 | AF93: -0.03506 | AG93: 0.20334 | AH93: 0.28086 | AM93: =IF(Lists!Q71=0,"",Lists!Q71) ->  | AN93: =IFERROR(VLOOKUP(AM93,#REF!,10,0),"") -> 
A94: 2.5 | F94: @AAPL 200117C00300000 | G94: 2020-01-06T13:47:59-05:00 | H94: 4.9 | I94: 0.25 | J94: 5.3763 | K94: 0 | L94: 3.07 | M94: 5.61 | N94: 2.5 | O94: 4.65 | P94: 4.85 | Q94: 4.95 | R94: 122 | S94: 169 | T94: 10720 | U94: 2020-01-06T13:47:48 | V94: Call | W94: 2020-01-17 | X94: 300 | Y94: 28467 | Z94: 8.10000038 | AA94: 0.009999999 | AB94: STAN | AC94: 0.51663 | AD94: 0.03262 | AE94: -0.33377 | AF94: 0.04545 | AG94: 0.20314 | AH94: 0.22835 | AM94: =IF(Lists!Q72=0,"",Lists!Q72) ->  | AN94: =IFERROR(VLOOKUP(AM94,#REF!,10,0),"") -> 
A95: 7.2 | F95: @AAPL 200117P00302500 | G95: 2020-01-06T13:47:59-05:00 | H95: 7.2 | I95: -1.1 | J95: -13.253 | K95: -1 | L95: 11.25 | M95: 11.27 | N95: 7.2 | O95: 8.3 | P95: 7 | Q95: 7.1 | R95: 100 | S95: 142 | T95: 555 | U95: 2020-01-06T13:39:21 | V95: Put | W95: 2020-01-17 | X95: 302.5 | Y95: 761 | Z95: 17.25 | AA95: 7.0999999 | AB95: STAN | AC95: -0.57792 | AD95: 0.03295 | AE95: -0.19989 | AF95: -0.04057 | AG95: 0.20691 | AH95: 0.28065 | AM95: =IF(Lists!Q73=0,"",Lists!Q73) ->  | AN95: =IFERROR(VLOOKUP(AM95,#REF!,10,0),"") -> 
A96: 2.22 | F96: @AAPL 200117C00302500 | G96: 2020-01-06T13:47:59-05:00 | H96: 3.8 | I96: 0.1 | J96: 2.7027 | K96: 0 | L96: 2.22 | M96: 4.49 | N96: 2.22 | O96: 3.7 | P96: 3.8 | Q96: 3.85 | R96: 57 | S96: 180 | T96: 7248 | U96: 2020-01-06T13:47:58 | V96: Call | W96: 2020-01-17 | X96: 302.5 | Y96: 3608 | Z96: 5.40000009 | AA96: 0.50999999 | AB96: STAN | AC96: 0.42949 | AD96: 0.0353 | AE96: -0.27928 | AF96: 0.03804 | AG96: 0.20896 | AH96: 0.25388 | AM96: =IF(Lists!Q74=0,"",Lists!Q74) ->  | AN96: =IFERROR(VLOOKUP(AM96,#REF!,10,0),"") -> 
A97: 8.81 | F97: @AAPL 200117P00305000 | G97: 2020-01-06T13:47:59-05:00 | H97: 9.4 | I97: -0.5 | J97: -5.0505 | K97: -1 | L97: 13 | M97: 13 | N97: 8.81 | O97: 9.9 | P97: 8.6 | Q97: 8.7 | R97: 107 | S97: 52 | T97: 498 | U97: 2020-01-06T12:49:15 | V97: Put | W97: 2020-01-17 | X97: 305 | Y97: 701 | Z97: 47.7000007 | AA97: 8.55000019 | AB97: STAN | AC97: -0.64513 | AD97: 0.02987 | AE97: -0.2054 | AF97: -0.04218 | AG97: 0.20504 | AH97: 0.30321 | AM97: =IF(Lists!Q75=0,"",Lists!Q75) ->  | AN97: =IFERROR(VLOOKUP(AM97,#REF!,10,0),"") -> 
A98: 1.36 | F98: @AAPL 200117C00305000 | G98: 2020-01-06T13:47:59-05:00 | H98: 2.91 | I98: 0.08 | J98: 2.8269 | K98: 1 | L98: 1.7 | M98: 3.55 | N98: 1.36 | O98: 2.83 | P98: 2.91 | Q98: 2.93 | R98: 7 | S98: 22 | T98: 3985 | U98: 2020-01-06T13:47:04 | V98: Call | W98: 2020-01-17 | X98: 305 | Y98: 11570 | Z98: 4.36000013 | AA98: 0.159999996 | AB98: STAN | AC98: 0.34236 | AD98: 0.0336 | AE98: -0.25792 | AF98: 0.03043 | AG98: 0.21461 | AH98: 0.25388 | AM98: =IF(Lists!Q76=0,"",Lists!Q76) ->  | AN98: =IFERROR(VLOOKUP(AM98,#REF!,10,0),"") -> 
A99: 10.7 | F99: @AAPL 200117P00307500 | G99: 2020-01-06T13:47:59-05:00 | H99: 11.85 | I99: 0.5 | J99: 4.4053 | K99: 1 | L99: 13.9 | M99: 13.9 | N99: 10.7 | O99: 11.35 | P99: 10.4 | Q99: 10.5 | R99: 80 | S99: 68 | T99: 88 | U99: 2020-01-06T12:21:38 | V99: Put | W99: 2020-01-17 | X99: 307.5 | Y99: 215 | Z99: 22.1000003 | AA99: 10.3299999 | AB99: STAN | AC99: -0.71299 | AD99: 0.02785 | AE99: -0.19669 | AF99: -0.0425 | AG99: 0.19674 | AH99: 0.27124 | AM99: =IF(Lists!Q77=0,"",Lists!Q77) ->  | AN99: =IFERROR(VLOOKUP(AM99,#REF!,10,0),"") -> 
A100: 1.01 | F100: @AAPL 200117C00307500 | G100: 2020-01-06T13:47:59-05:00 | H100: 2.21 | I100: -0.02 | J100: -0.896861 | K100: 0 | L100: 1.31 | M100: 2.73 | N100: 1.01 | O100: 2.23 | P100: 2.19 | Q100: 2.22 | R100: 72 | S100: 25 | T100: 1657 | U100: 2020-01-06T13:47:45 | V100: Call | W100: 2020-01-17 | X100: 307.5 | Y100: 1603 | Z100: 3.45000004 | AA100: 0.75 | AB100: STAN | AC100: 0.28979 | AD100: 0.02828 | AE100: -0.27303 | AF100: 0.02573 | AG100: 0.19453 | AH100: 0.21361 | AM100: =IF(Lists!Q78=0,"",Lists!Q78) ->  | AN100: =IFERROR(VLOOKUP(AM100,#REF!,10,0),"") -> 
A101: 12.4 | F101: @AAPL 200117P00310000 | G101: 2020-01-06T13:47:59-05:00 | H101: 12.8 | I101: -0.8 | J101: -5.8824 | K101: -1 | L101: 17.1 | M101: 17.1 | N101: 12.4 | O101: 13.6 | P101: 12.35 | Q101: 12.45 | R101: 69 | S101: 45 | T101: 144 | U101: 2020-01-06T13:13:28 | V101: Put | W101: 2020-01-17 | X101: 310 | Y101: 1007 | Z101: 152.740005 | AA101: 11.8999996 | AB101: STAN | AC101: -0.80186 | AD101: 0.02776 | AE101: -0.12596 | AF101: -0.03972 | AG101: 0.13739 | AH101: 0.33307 | AM101: =IF(Lists!Q79=0,"",Lists!Q79) ->  | AN101: =IFERROR(VLOOKUP(AM101,#REF!,10,0),"") -> 
A102: 0.4 | F102: @AAPL 200117C00310000 | G102: 2020-01-06T13:47:59-05:00 | H102: 1.66 | I102: 0.05 | J102: 3.1056 | K102: 1 | L102: 1.09 | M102: 2.11 | N102: 0.4 | O102: 1.61 | P102: 1.65 | Q102: 1.66 | R102: 8 | S102: 20 | T102: 5484 | U102: 2020-01-06T13:47:43 | V102: Call | W102: 2020-01-17 | X102: 310 | Y102: 10079 | Z102: 6.5999999 | AA102: 0.009999999 | AB102: STAN | AC102: 0.23671 | AD102: 0.02446 | AE102: -0.23451 | AF102: 0.02104 | AG102: 0.14765 | AH102: 0.2445 | AM102: =IF(Lists!Q80=0,"",Lists!Q80) ->  | AN102: =IFERROR(VLOOKUP(AM102,#REF!,10,0),"") -> 
A103: 15.15 | F103: @AAPL 200117P00312500 | G103: 2020-01-06T13:47:59-05:00 | H103: 15.65 | I103: 0.25 | J103: 1.6234 | K103: 1 | L103: 17.5 | M103: 17.5 | N103: 15.15 | O103: 15.4 | P103: 14.45 | Q103: 14.55 | R103: 3 | S103: 20 | T103: 55 | U103: 2020-01-06T12:13:00 | V103: Put | W103: 2020-01-17 | X103: 312.5 | Y103: 246 | Z103: 16.3999996 | AA103: 14.1000003 | AB103: STAN | AC103: -0.81557 | AD103: 0.02271 | AE103: -0.14086 | AF103: -0.04122 | AG103: 0.13714 | AH103: 0.30499 | AM103: =IF(Lists!Q81=0,"",Lists!Q81) ->  | AN103: =IFERROR(VLOOKUP(AM103,#REF!,10,0),"") -> 
A104: 0.62 | F104: @AAPL 200117C00312500 | G104: 2020-01-06T13:47:59-05:00 | H104: 1.25 | I104: -0.04 | J104: -3.1008 | K104: 1 | L104: 0.7 | M104: 1.56 | N104: 0.62 | O104: 1.29 | P104: 1.23 | Q104: 1.24 | R104: 10 | S104: 14 | T104: 1620 | U104: 2020-01-06T13:47:18 | V104: Call | W104: 2020-01-17 | X104: 312.5 | Y104: 1922 | Z104: 2.15000009 | AA104: 0.469999998 | AB104: STAN | AC104: 0.14403 | AD104: 0.02037 | AE104: -0.14876 | AF104: 0.0129 | AG104: 0.1549 | AH104: 0.21872 | AM104: =IF(Lists!Q82=0,"",Lists!Q82) ->  | AN104: =IFERROR(VLOOKUP(AM104,#REF!,10,0),"") -> 
A105: 17 | F105: @AAPL 200117P00315000 | G105: 2020-01-06T13:47:59-05:00 | H105: 17 | I105: -0.6 | J105: -3.4091 | K105: -1 | L105: 21.23 | M105: 21.23 | N105: 17 | O105: 17.6 | P105: 16.6 | Q105: 16.75 | R105: 125 | S105: 58 | T105: 127 | U105: 2020-01-06T13:14:01 | V105: Put | W105: 2020-01-17 | X105: 315 | Y105: 26 | Z105: 34.2999992 | AA105: 16.0499992 | AB105: STAN | AC105: -0.90137 | AD105: 0.01919 | AE105: -0.07382 | AF105: -0.02932 | AG105: 0.10477 | AH105: 0.28519 | AM105: =IF(Lists!Q83=0,"",Lists!Q83) ->  | AN105: =IFERROR(VLOOKUP(AM105,#REF!,10,0),"") -> 
A106: 0.36 | F106: @AAPL 200117C00315000 | G106: 2020-01-06T13:47:59-05:00 | H106: 0.91 | I106: 0.01 | J106: 1.1111 | K106: 1 | L106: 0.57 | M106: 1.23 | N106: 0.36 | O106: 0.9 | P106: 0.92 | Q106: 0.93 | R106: 36 | S106: 20 | T106: 1332 | U106: 2020-01-06T13:46:33 | V106: Call | W106: 2020-01-17 | X106: 315 | Y106: 6710 | Z106: 1.65999996 | AA106: 0.05 | AB106: STAN | AC106: 0.12749 | AD106: 0.01676 | AE106: -0.15399 | AF106: 0.01139 | AG106: 0.15428 | AH106: 0.24997 | AM106: =IF(Lists!Q84=0,"",Lists!Q84) ->  | AN106: =IFERROR(VLOOKUP(AM106,#REF!,10,0),"") -> 
A107: 19.3 | F107: @AAPL 200117P00317500 | G107: 2020-01-06T13:47:59-05:00 | H107: 19.45 | I107: -0.3 | J107: -1.519 | K107: 0 | L107: 19.35 | M107: 19.45 | N107: 19.3 | O107: 19.75 | P107: 18.9 | Q107: 19.05 | R107: 70 | S107: 34 | T107: 21 | U107: 2020-01-06T13:15:05 | V107: Put | W107: 2020-01-17 | X107: 317.5 | Y107: 1 | Z107: 19.8999996 | AA107: 18.4099998 | AB107: STAN | AC107: -0.92625 | AD107: 0.01554 | AE107: -0.06884 | AF107: -0.02744 | AG107: 0.09212 | AH107: 0.29861 | AM107: =IF(Lists!Q85=0,"",Lists!Q85) ->  | AN107: =IFERROR(VLOOKUP(AM107,#REF!,10,0),"") -> 
A108: 0.38 | F108: @AAPL 200117C00317500 | G108: 2020-01-06T13:47:59-05:00 | H108: 0.72 | I108: -0.01 | J108: -1.3699 | K108: 0 | L108: 0.38 | M108: 0.93 | N108: 0.38 | O108: 0.73 | P108: 0.69 | Q108: 0.71 | R108: 92 | S108: 66 | T108: 601 | U108: 2020-01-06T13:38:38 | V108: Call | W108: 2020-01-17 | X108: 317.5 | Y108: 1576 | Z108: 1.30999994 | AA108: 0.360000014 | AB108: STAN | AC108: 0.09289 | AD108: 0.01339 | AE108: -0.12099 | AF108: 0.00832 | AG108: 0.0676 | AH108: 0.24997 | AM108: =IF(Lists!Q86=0,"",Lists!Q86) ->  | AN108: =IFERROR(VLOOKUP(AM108,#REF!,10,0),"") -> 
A109: 23.45 | F109: @AAPL 200117P00320000 | G109: 2020-01-06T13:47:59-05:00 | H109: 23.47 | I109: 1.92 | J109: 8.9095 | K109: 1 | L109: 26.7 | M109: 26.7 | N109: 23.45 | O109: 21.55 | P109: 21.25 | Q109: 21.45 | R109: 12 | S109: 70 | T109: 9 | U109: 2020-01-06T10:38:38 | V109: Put | W109: 2020-01-17 | X109: 320 | Y109: 153 | Z109: 154.100006 | AA109: 20.3999996 | AB109: STAN | AC109: -0.93467 | AD109: 0.01314 | AE109: -0.07078 | AF109: -0.02709 | AG109: 0.08343 | AH109: 0.1325 | AM109: =IF(Lists!Q87=0,"",Lists!Q87) ->  | AN109: =IFERROR(VLOOKUP(AM109,#REF!,10,0),"") -> 
A110: 0.22 | F110: @AAPL 200117C00320000 | G110: 2020-01-06T13:47:59-05:00 | H110: 0.53 | I110: 0 | J110: 0 | K110: 0 | L110: 0.22 | M110: 0.74 | N110: 0.22 | O110: 0.53 | P110: 0.53 | Q110: 0.55 | R110: 51 | S110: 193 | T110: 1503 | U110: 2020-01-06T13:43:53 | V110: Call | W110: 2020-01-17 | X110: 320 | Y110: 8216 | Z110: 5.30999994 | AA110: 0.029999999 | AB110: STAN | AC110: 0.09895 | AD110: 0.01202 | AE110: -0.14954 | AF110: 0.00882 | AG110: 0.06631 | AH110: 0.28086 | AM110: =IF(Lists!Q88=0,"",Lists!Q88) ->  | AN110: =IFERROR(VLOOKUP(AM110,#REF!,10,0),"") -> 
A111: 0.21 | F111: @AAPL 200117C00325000 | G111: 2020-01-06T13:47:59-05:00 | H111: 0.35 | I111: 0.02 | J111: 6.0606 | K111: 0 | L111: 0.25 | M111: 0.45 | N111: 0.21 | O111: 0.33 | P111: 0.33 | Q111: 0.34 | R111: 31 | S111: 66 | T111: 2382 | U111: 2020-01-06T13:37:46 | V111: Call | W111: 2020-01-17 | X111: 325 | Y111: 2951 | Z111: 0.629999995 | AA111: 0.189999997 | AB111: STAN | AC111: 0.07733 | AD111: 0.00884 | AE111: -0.1308 | AF111: 0.00688 | AG111: 0.06705 | AH111: 0.27894 | AM111: =IF(Lists!Q89=0,"",Lists!Q89) ->  | AN111: =IFERROR(VLOOKUP(AM111,#REF!,10,0),"") -> 
A112: 0.47 | F112: @AAPL 200124P00270000 | G112: 2020-01-06T13:47:59-05:00 | H112: 0.5 | I112: -0.15 | J112: -23.0769 | K112: -1 | L112: 0.9 | M112: 0.9 | N112: 0.47 | O112: 0.65 | P112: 0.44 | Q112: 0.46 | R112: 49 | S112: 11 | T112: 405 | U112: 2020-01-06T13:22:00 | V112: Put | W112: 2020-01-24 | X112: 270 | Y112: 1870 | Z112: 10.5 | AA112: 0.629999995 | AB112: WEEK | AC112: -0.04924 | AD112: 0.00516 | AE112: -0.05811 | AF112: -0.0072 | AG112: 0.06017 | AH112: 0.33539 | AM112: =IF(Lists!Q90=0,"",Lists!Q90) ->  | AN112: =IFERROR(VLOOKUP(AM112,#REF!,10,0),"") -> 
A113: 24.55 | F113: @AAPL 200124C00270000 | G113: 2020-01-06T13:47:59-05:00 | H113: 27.62 | I113: -1.13 | J113: -3.9304 | K113: 1 | L113: 24.55 | M113: 27.62 | N113: 24.55 | O113: 28.75 | P113: 29.55 | Q113: 29.9 | R113: 55 | S113: 24 | T113: 3 | U113: 2020-01-06T10:03:13 | V113: Call | W113: 2020-01-24 | X113: 270 | Y113: 545 | Z113: 31.1000003 | AA113: 6.0999999 | AB113: WEEK | AC113: 0.99954 | AD113: 0 | AE113: -0.11095 | AF113: 0.13281 | AG113: 0 | AH113: 0.02022 | AM113: =IF(Lists!Q91=0,"",Lists!Q91) ->  | AN113: =IFERROR(VLOOKUP(AM113,#REF!,10,0),"") -> 
A114: 0.57 | F114: @AAPL 200124P00272500 | G114: 2020-01-06T13:47:59-05:00 | H114: 0.58 | I114: -0.17 | J114: -22.6667 | K114: 1 | L114: 2.13 | M114: 2.13 | N114: 0.57 | O114: 0.75 | P114: 0.54 | Q114: 0.56 | R114: 47 | S114: 11 | T114: 179 | U114: 2020-01-06T13:37:19 | V114: Put | W114: 2020-01-24 | X114: 272.5 | Y114: 1077 | Z114: 10.6300001 | AA114: 0.75 | AB114: WEEK | AC114: -0.06222 | AD114: 0.00635 | AE114: -0.07207 | AF114: -0.00902 | AG114: 0.06217 | AH114: 0.31779 | AM114: =IF(Lists!Q92=0,"",Lists!Q92) ->  | AN114: =IFERROR(VLOOKUP(AM114,#REF!,10,0),"") -> 
A115: 26.45 | F115: @AAPL 200124C00272500 | G115: 2020-01-06T13:47:59-05:00 | H115: 26.45 | I115: 0.2 | J115: 0.761905 | K115: 1 | L115: 26.45 | M115: 26.45 | N115: 26.45 | O115: 26.25 | P115: 27.05 | Q115: 27.8 | R115: 26 | S115: 208 | T115: 1 | U115: 2020-01-06T10:52:01 | V115: Call | W115: 2020-01-24 | X115: 272.5 | Y115: 401 | Z115: 28.1499996 | AA115: 5.1999998 | AB115: WEEK | AC115: 0.99954 | AD115: 0 | AE115: -0.11207 | AF115: 0.13404 | AG115: 0 | AH115: 0.01004 | AM115: =IF(Lists!Q93=0,"",Lists!Q93) ->  | AN115: =IFERROR(VLOOKUP(AM115,#REF!,10,0),"") -> 
A116: 0.51 | F116: @AAPL 200124P00275000 | G116: 2020-01-06T13:47:59-05:00 | H116: 0.73 | I116: -0.25 | J116: -25.5102 | K116: -1 | L116: 1.44 | M116: 1.5 | N116: 0.51 | O116: 0.98 | P116: 0.68 | Q116: 0.7 | R116: 10 | S116: 27 | T116: 226 | U116: 2020-01-06T13:15:43 | V116: Put | W116: 2020-01-24 | X116: 275 | Y116: 1232 | Z116: 13.3999996 | AA116: 0.899999976 | AB116: WEEK | AC116: -0.05983 | AD116: 0.00689 | AE116: -0.06135 | AF116: -0.00863 | AG116: 0.06118 | AH116: 0.2954 | AM116: =IF(Lists!Q94=0,"",Lists!Q94) ->  | AN116: =IFERROR(VLOOKUP(AM116,#REF!,10,0),"") -> 
A117: 21.9 | F117: @AAPL 200124C00275000 | G117: 2020-01-06T13:47:59-05:00 | H117: 24.84 | I117: 0.61 | J117: 2.5175 | K117: 1 | L117: 21.9 | M117: 24.84 | N117: 21.9 | O117: 24.23 | P117: 24.95 | Q117: 25.15 | R117: 37 | S117: 57 | T117: 459 | U117: 2020-01-06T13:34:06 | V117: Call | W117: 2020-01-24 | X117: 275 | Y117: 560 | Z117: 26.2000007 | AA117: 4.1999998 | AB117: WEEK | AC117: 0.99954 | AD117: 0 | AE117: -0.11318 | AF117: 0.13527 | AG117: 0 | AH117: 0.01066 | AM117: =IF(Lists!Q95=0,"",Lists!Q95) ->  | AN117: =IFERROR(VLOOKUP(AM117,#REF!,10,0),"") -> 
A118: 0.86 | F118: @AAPL 200124P00277500 | G118: 2020-01-06T13:47:59-05:00 | H118: 0.86 | I118: -0.29 | J118: -25.2174 | K118: -1 | L118: 1.7 | M118: 1.7 | N118: 0.86 | O118: 1.15 | P118: 0.84 | Q118: 0.87 | R118: 34 | S118: 11 | T118: 199 | U118: 2020-01-06T13:45:45 | V118: Put | W118: 2020-01-24 | X118: 277.5 | Y118: 343 | Z118: 12.3500003 | AA118: 1.12 | AB118: WEEK | AC118: -0.07182 | AD118: 0.00838 | AE118: -0.07019 | AF118: -0.00927 | AG118: 0.14273 | AH118: 0.24896 | AM118: =IF(Lists!Q96=0,"",Lists!Q96) ->  | AN118: =IFERROR(VLOOKUP(AM118,#REF!,10,0),"") -> 
A119: 23.3 | F119: @AAPL 200124C00277500 | G119: 2020-01-06T13:47:59-05:00 | H119: 23.3 | I119: 0.1 | J119: 0.431034 | K119: 1 | L119: 23.3 | M119: 23.3 | N119: 23.3 | O119: 23.2 | P119: 22.45 | Q119: 22.95 | R119: 31 | S119: 31 | T119: 10 | U119: 2020-01-06T11:15:59 | V119: Call | W119: 2020-01-24 | X119: 277.5 | Y119: 413 | Z119: 23.9899997 | AA119: 3.28999996 | AB119: WEEK | AC119: 0.99954 | AD119: 0 | AE119: -0.1143 | AF119: 0.1365 | AG119: 0 | AH119: 0.05176 | AM119: =IF(Lists!Q97=0,"",Lists!Q97) ->  | AN119: =IFERROR(VLOOKUP(AM119,#REF!,10,0),"") -> 
A120: 1.11 | F120: @AAPL 200124P00280000 | G120: 2020-01-06T13:47:59-05:00 | H120: 1.12 | I120: -0.34 | J120: -23.2877 | K120: -1 | L120: 2.13 | M120: 2.13 | N120: 1.11 | O120: 1.46 | P120: 1.07 | Q120: 1.1 | R120: 36 | S120: 12 | T120: 351 | U120: 2020-01-06T13:37:59 | V120: Put | W120: 2020-01-24 | X120: 280 | Y120: 3009 | Z120: 15.1400003 | AA120: 1.38999998 | AB120: WEEK | AC120: -0.11788 | AD120: 0.01095 | AE120: -0.09943 | AF120: -0.01631 | AG120: 0.148 | AH120: 0.24961 | AM120: =IF(Lists!Q98=0,"",Lists!Q98) ->  | AN120: =IFERROR(VLOOKUP(AM120,#REF!,10,0),"") -> 
A121: 16.55 | F121: @AAPL 200124C00280000 | G121: 2020-01-06T13:47:59-05:00 | H121: 20.3 | I121: 0.7 | J121: 3.5714 | K121: 1 | L121: 16.55 | M121: 20.9 | N121: 16.55 | O121: 19.6 | P121: 20.35 | Q121: 20.55 | R121: 57 | S121: 89 | T121: 81 | U121: 2020-01-06T13:36:39 | V121: Call | W121: 2020-01-24 | X121: 280 | Y121: 2434 | Z121: 22.1000003 | AA121: 2.54999995 | AB121: WEEK | AC121: 0.99954 | AD121: 0 | AE121: -0.11541 | AF121: 0.13773 | AG121: 0 | AH121: 0.01 | AM121: =IF(Lists!Q99=0,"",Lists!Q99) ->  | AN121: =IFERROR(VLOOKUP(AM121,#REF!,10,0),"") -> 
A122: 1.41 | F122: @AAPL 200124P00282500 | G122: 2020-01-06T13:47:59-05:00 | H122: 1.41 | I122: -0.43 | J122: -23.3696 | K122: -1 | L122: 2.68 | M122: 2.68 | N122: 1.41 | O122: 1.84 | P122: 1.37 | Q122: 1.4 | R122: 50 | S122: 7 | T122: 130 | U122: 2020-01-06T13:45:45 | V122: Put | W122: 2020-01-24 | X122: 282.5 | Y122: 969 | Z122: 11.4300003 | AA122: 1.69000005 | AB122: WEEK | AC122: -0.12446 | AD122: 0.01272 | AE122: -0.09076 | AF122: -0.01727 | AG122: 0.14728 | AH122: 0.28954 | AM122: =IF(Lists!Q100=0,"",Lists!Q100) ->  | AN122: =IFERROR(VLOOKUP(AM122,#REF!,10,0),"") -> 
A123: 15.15 | F123: @AAPL 200124C00282500 | G123: 2020-01-06T13:47:59-05:00 | H123: 17.42 | I123: 0.54 | J123: 3.1991 | K123: -1 | L123: 15.42 | M123: 18.11 | N123: 15.15 | O123: 16.88 | P123: 18.15 | Q123: 18.35 | R123: 74 | S123: 39 | T123: 17 | U123: 2020-01-06T12:28:37 | V123: Call | W123: 2020-01-24 | X123: 282.5 | Y123: 1134 | Z123: 20.1499996 | AA123: 2.3499999 | AB123: WEEK | AC123: 0.99954 | AD123: 0 | AE123: -0.11652 | AF123: 0.13896 | AG123: 0 | AH123: 0.01002 | AM123: =IF(Lists!Q101=0,"",Lists!Q101) ->  | AN123: =IFERROR(VLOOKUP(AM123,#REF!,10,0),"") -> 
A124: 1.78 | F124: @AAPL 200124P00285000 | G124: 2020-01-06T13:47:59-05:00 | H124: 1.78 | I124: -0.57 | J124: -24.2553 | K124: -1 | L124: 3.25 | M124: 3.35 | N124: 1.78 | O124: 2.35 | P124: 1.76 | Q124: 1.79 | R124: 54 | S124: 8 | T124: 338 | U124: 2020-01-06T13:47:24 | V124: Put | W124: 2020-01-24 | X124: 285 | Y124: 1163 | Z124: 23.4500007 | AA124: 2.08999991 | AB124: WEEK | AC124: -0.1826 | AD124: 0.01518 | AE124: -0.13532 | AF124: -0.0249 | AG124: 0.1566 | AH124: 0.28086 | AM124: =IF(Lists!Q102=0,"",Lists!Q102) ->  | AN124: =IFERROR(VLOOKUP(AM124,#REF!,10,0),"") -> 
A125: 11.79 | F125: @AAPL 200124C00285000 | G125: 2020-01-06T13:47:59-05:00 | H125: 15.96 | I125: 0.32 | J125: 2.046 | K125: 1 | L125: 11.79 | M125: 16.5 | N125: 11.79 | O125: 15.64 | P125: 16.05 | Q125: 16.2 | R125: 54 | S125: 34 | T125: 42 | U125: 2020-01-06T13:34:06 | V125: Call | W125: 2020-01-24 | X125: 285 | Y125: 2345 | Z125: 18.1000003 | AA125: 1.83000004 | AB125: WEEK | AC125: 0.95696 | AD125: 0.00966 | AE125: -0.13972 | AF125: 0.13389 | AG125: 0.05259 | AH125: 0.14477 | AM125: =IF(Lists!Q103=0,"",Lists!Q103) ->  | AN125: =IFERROR(VLOOKUP(AM125,#REF!,10,0),"") -> 
A126: 2.45 | F126: @AAPL 200124P00287500 | G126: 2020-01-06T13:47:59-05:00 | H126: 2.47 | I126: -0.26 | J126: -9.5238 | K126: 0 | L126: 4.25 | M126: 4.78 | N126: 2.45 | O126: 2.73 | P126: 2.26 | Q126: 2.28 | R126: 31 | S126: 1 | T126: 369 | U126: 2020-01-06T13:07:27 | V126: Put | W126: 2020-01-24 | X126: 287.5 | Y126: 628 | Z126: 8.80000019 | AA126: 2.5999999 | AB126: WEEK | AC126: -0.19822 | AD126: 0.0183 | AE126: -0.12669 | AF126: -0.02564 | AG126: 0.16478 | AH126: 0.28086 | AM126: =IF(Lists!Q104=0,"",Lists!Q104) ->  | AN126: =IFERROR(VLOOKUP(AM126,#REF!,10,0),"") -> 
A127: 11.68 | F127: @AAPL 200124C00287500 | G127: 2020-01-06T13:47:59-05:00 | H127: 13.95 | I127: 1.02 | J127: 7.8886 | K127: 1 | L127: 11.77 | M127: 14.8 | N127: 11.68 | O127: 12.93 | P127: 14.1 | Q127: 14.2 | R127: 5 | S127: 53 | T127: 64 | U127: 2020-01-06T13:30:06 | V127: Call | W127: 2020-01-24 | X127: 287.5 | Y127: 885 | Z127: 16.1499996 | AA127: 1.41999995 | AB127: WEEK | AC127: 0.88398 | AD127: 0.01713 | AE127: -0.17395 | AF127: 0.12412 | AG127: 0.14042 | AH127: 0.19606 | AM127: =IF(Lists!Q105=0,"",Lists!Q105) ->  | AN127: =IFERROR(VLOOKUP(AM127,#REF!,10,0),"") -> 
A128: 3 | F128: @AAPL 200124P00290000 | G128: 2020-01-06T13:47:59-05:00 | H128: 3 | I128: -0.52 | J128: -14.7727 | K128: -1 | L128: 4.75 | M128: 5.8 | N128: 3 | O128: 3.52 | P128: 2.87 | Q128: 2.9 | R128: 18 | S128: 2 | T128: 634 | U128: 2020-01-06T13:26:48 | V128: Put | W128: 2020-01-24 | X128: 290 | Y128: 3621 | Z128: 16.8500003 | AA128: 3.20000004 | AB128: WEEK | AC128: -0.27116 | AD128: 0.01886 | AE128: -0.16402 | AF128: -0.03463 | AG128: 0.24041 | AH128: 0.28059 | AM128: =IF(Lists!Q106=0,"",Lists!Q106) ->  | AN128: =IFERROR(VLOOKUP(AM128,#REF!,10,0),"") -> 
A129: 8.69 | F129: @AAPL 200124C00290000 | G129: 2020-01-06T13:47:59-05:00 | H129: 11.62 | I129: -0.08 | J129: -0.683761 | K129: 0 | L129: 8.69 | M129: 12.95 | N129: 8.69 | O129: 11.7 | P129: 12.2 | Q129: 12.3 | R129: 19 | S129: 25 | T129: 192 | U129: 2020-01-06T13:02:37 | V129: Call | W129: 2020-01-24 | X129: 290 | Y129: 1658 | Z129: 14.1999998 | AA129: 1.21000003 | AB129: WEEK | AC129: 0.8507 | AD129: 0.02222 | AE129: -0.1802 | AF129: 0.12039 | AG129: 0.14343 | AH129: 0.22803
A130: 3.7 | F130: @AAPL 200124P00292500 | G130: 2020-01-06T13:47:59-05:00 | H130: 3.7 | I130: -0.66 | J130: -15.1376 | K130: -1 | L130: 6 | M130: 6.05 | N130: 3.7 | O130: 4.36 | P130: 3.6 | Q130: 3.65 | R130: 33 | S130: 33 | T130: 602 | U130: 2020-01-06T13:44:45 | V130: Put | W130: 2020-01-24 | X130: 292.5 | Y130: 3478 | Z130: 10.6499996 | AA130: 3.93000006 | AB130: WEEK | AC130: -0.30186 | AD130: 0.02249 | AE130: -0.14495 | AF130: -0.03922 | AG130: 0.24221 | AH130: 0.28004
A131: 7.33 | F131: @AAPL 200124C00292500 | G131: 2020-01-06T13:47:59-05:00 | H131: 10.35 | I131: 0.35 | J131: 3.5 | K131: 1 | L131: 7.33 | M131: 10.55 | N131: 7.33 | O131: 10 | P131: 10.45 | Q131: 10.55 | R131: 18 | S131: 23 | T131: 67 | U131: 2020-01-06T13:15:47 | V131: Call | W131: 2020-01-24 | X131: 292.5 | Y131: 680 | Z131: 12.1199998 | AA131: 0.920000016 | AB131: WEEK | AC131: 0.73432 | AD131: 0.02378 | AE131: -0.23344 | AF131: 0.10362 | AG131: 0.23718 | AH131: 0.20281
A132: 4.64 | F132: @AAPL 200124P00295000 | G132: 2020-01-06T13:47:59-05:00 | H132: 4.64 | I132: -0.62 | J132: -11.7871 | K132: -1 | L132: 6 | M132: 7.4 | N132: 4.64 | O132: 5.26 | P132: 4.5 | Q132: 4.55 | R132: 23 | S132: 31 | T132: 543 | U132: 2020-01-06T13:34:28 | V132: Put | W132: 2020-01-24 | X132: 295 | Y132: 531 | Z132: 15.8500003 | AA132: 4.75 | AB132: WEEK | AC132: -0.36005 | AD132: 0.02443 | AE132: -0.15287 | AF132: -0.04632 | AG132: 0.24796 | AH132: 0.24974
A133: 5.5 | F133: @AAPL 200124C00295000 | G133: 2020-01-06T13:47:59-05:00 | H133: 8.75 | I133: 0.31 | J133: 3.673 | K133: 0 | L133: 5.95 | M133: 9.5 | N133: 5.5 | O133: 8.44 | P133: 8.85 | Q133: 8.95 | R133: 31 | S133: 45 | T133: 1421 | U133: 2020-01-06T13:36:07 | V133: Call | W133: 2020-01-24 | X133: 295 | Y133: 1069 | Z133: 10.7700004 | AA133: 0.75999999 | AB133: WEEK | AC133: 0.69424 | AD133: 0.02962 | AE133: -0.21565 | AF133: 0.09894 | AG133: 0.23993 | AH133: 0.21151
A134: 5.55 | F134: @AAPL 200124P00297500 | G134: 2020-01-06T13:47:59-05:00 | H134: 5.55 | I134: -0.85 | J134: -13.2812 | K134: -1 | L134: 8.77 | M134: 9 | N134: 5.55 | O134: 6.4 | P134: 5.55 | Q134: 5.6 | R134: 3 | S134: 23 | T134: 1141 | U134: 2020-01-06T13:47:24 | V134: Put | W134: 2020-01-24 | X134: 297.5 | Y134: 8671 | Z134: 16 | AA134: 5.75 | AB134: WEEK | AC134: -0.4223 | AD134: 0.02634 | AE134: -0.16581 | AF134: -0.05129 | AG134: 0.25358 | AH134: 0.24997
A135: 4.9 | F135: @AAPL 200124C00297500 | G135: 2020-01-06T13:47:59-05:00 | H135: 7.46 | I135: 0.36 | J135: 5.0704 | K135: 1 | L135: 5.55 | M135: 8.1 | N135: 4.9 | O135: 7.1 | P135: 7.4 | Q135: 7.5 | R135: 34 | S135: 59 | T135: 861 | U135: 2020-01-06T13:47:24 | V135: Call | W135: 2020-01-24 | X135: 297.5 | Y135: 1333 | Z135: 9.26000022 | AA135: 0.660000026 | AB135: WEEK | AC135: 0.62055 | AD135: 0.03338 | AE135: -0.22002 | AF135: 0.08892 | AG135: 0.24873 | AH135: 0.22783
A136: 6.75 | F136: @AAPL 200124P00300000 | G136: 2020-01-06T13:47:59-05:00 | H136: 6.75 | I136: -0.95 | J136: -12.3377 | K136: -1 | L136: 10 | M136: 10.25 | N136: 6.75 | O136: 7.7 | P136: 6.75 | Q136: 6.8 | R136: 11 | S136: 8 | T136: 183 | U136: 2020-01-06T13:47:48 | V136: Put | W136: 2020-01-24 | X136: 300 | Y136: 481 | Z136: 30.7000007 | AA136: 6.8499999 | AB136: WEEK | AC136: -0.486 | AD136: 0.0272 | AE136: -0.16335 | AF136: -0.05309 | AG136: 0.25798 | AH136: 0.24829
A137: 3.45 | F137: @AAPL 200124C00300000 | G137: 2020-01-06T13:47:59-05:00 | H137: 6.15 | I137: 0.4 | J137: 6.9565 | K137: 0 | L137: 4.41 | M137: 6.8 | N137: 3.45 | O137: 5.75 | P137: 6.1 | Q137: 6.2 | R137: 54 | S137: 59 | T137: 2610 | U137: 2020-01-06T13:47:09 | V137: Call | W137: 2020-01-24 | X137: 300 | Y137: 4858 | Z137: 7.90000009 | AA137: 0.449999988 | AB137: WEEK | AC137: 0.54172 | AD137: 0.03523 | AE137: -0.21749 | AF137: 0.07799 | AG137: 0.25831 | AH137: 0.18918
A138: 8.4 | F138: @AAPL 200124P00302500 | G138: 2020-01-06T13:47:59-05:00 | H138: 8.65 | I138: -0.3 | J138: -3.352 | K138: -1 | L138: 11.6 | M138: 11.6 | N138: 8.4 | O138: 8.95 | P138: 8.1 | Q138: 8.2 | R138: 57 | S138: 45 | T138: 33 | U138: 2020-01-06T13:06:49 | V138: Put | W138: 2020-01-24 | X138: 302.5 | Y138: 82 | Z138: 15.46 | AA138: 8.39999961 | AB138: WEEK | AC138: -0.54998 | AD138: 0.02736 | AE138: -0.14629 | AF138: -0.0592 | AG138: 0.26133 | AH138: 0.28086
A139: 2.65 | F139: @AAPL 200124C00302500 | G139: 2020-01-06T13:47:59-05:00 | H139: 4.97 | I139: 0.27 | J139: 5.7447 | K139: 0 | L139: 3.65 | M139: 5.55 | N139: 2.65 | O139: 4.7 | P139: 4.95 | Q139: 5.05 | R139: 76 | S139: 21 | T139: 841 | U139: 2020-01-06T13:43:25 | V139: Call | W139: 2020-01-24 | X139: 302.5 | Y139: 1594 | Z139: 6.5999999 | AA139: 0.639999985 | AB139: WEEK | AC139: 0.47167 | AD139: 0.02682 | AE139: -0.247 | AF139: 0.0674 | AG139: 0.26495 | AH139: 0.19594
A140: 9.81 | F140: @AAPL 200124P00305000 | G140: 2020-01-06T13:47:59-05:00 | H140: 9.81 | I140: -0.94 | J140: -8.7442 | K140: -1 | L140: 11.87 | M140: 12.15 | N140: 9.81 | O140: 10.75 | P140: 9.65 | Q140: 9.75 | R140: 18 | S140: 42 | T140: 50 | U140: 2020-01-06T13:28:31 | V140: Put | W140: 2020-01-24 | X140: 305 | Y140: 185 | Z140: 30.67 | AA140: 9.85000038 | AB140: WEEK | AC140: -0.59475 | AD140: 0.02324 | AE140: -0.16801 | AF140: -0.06522 | AG140: 0.26447 | AH140: 0.25347
A141: 2.61 | F141: @AAPL 200124C00305000 | G141: 2020-01-06T13:47:59-05:00 | H141: 4.05 | I141: 0.25 | J141: 6.5789 | K141: 0 | L141: 2.84 | M141: 4.6 | N141: 2.61 | O141: 3.8 | P141: 4 | Q141: 4.1 | R141: 64 | S141: 63 | T141: 952 | U141: 2020-01-06T13:47:55 | V141: Call | W141: 2020-01-24 | X141: 305 | Y141: 1447 | Z141: 5.55000019 | AA141: 0.370000004 | AB141: WEEK | AC141: 0.39985 | AD141: 0.02743 | AE141: -0.22226 | AF141: 0.05745 | AG141: 0.27294 | AH141: 0.21046
A142: 12.25 | F142: @AAPL 200124P00307500 | G142: 2020-01-06T13:47:59-05:00 | H142: 12.25 | I142: -0.75 | J142: -5.7692 | K142: -1 | L142: 12.25 | M142: 12.25 | N142: 12.25 | O142: 13 | P142: 11.3 | Q142: 11.45 | R142: 12 | S142: 21 | T142: 1 | U142: 2020-01-06T12:52:02 | V142: Put | W142: 2020-01-24 | X142: 307.5 | Y142: 11 | Z142: 21.1900005 | AA142: 11.6999998 | AB142: WEEK | AC142: -0.64482 | AD142: 0.0221 | AE142: -0.16726 | AF142: -0.06992 | AG142: 0.26455 | AH142: 0.28802
A143: 2.35 | F143: @AAPL 200124C00307500 | G143: 2020-01-06T13:47:59-05:00 | H143: 3.25 | I143: 0.05 | J143: 1.5625 | K143: 1 | L143: 2.56 | M143: 3.7 | N143: 2.35 | O143: 3.2 | P143: 3.2 | Q143: 3.3 | R143: 20 | S143: 93 | T143: 152 | U143: 2020-01-06T13:47:04 | V143: Call | W143: 2020-01-24 | X143: 307.5 | Y143: 854 | Z143: 4.5999999 | AA143: 0.5 | AB143: WEEK | AC143: 0.35667 | AD143: 0.02329 | AE143: -0.23859 | AF143: 0.05108 | AG143: 0.27569 | AH143: 0.23559
A144: 13.4 | F144: @AAPL 200124P00310000 | G144: 2020-01-06T13:47:59-05:00 | H144: 14.13 | I144: 0.38 | J144: 2.7636 | K144: 1 | L144: 17.65 | M144: 17.65 | N144: 13.4 | O144: 13.75 | P144: 13.15 | Q144: 13.25 | R144: 51 | S144: 11 | T144: 14 | U144: 2020-01-06T12:52:02 | V144: Put | W144: 2020-01-24 | X144: 310 | Y144: 76 | Z144: 23.5 | AA144: 13.0399999 | AB144: WEEK | AC144: -0.72527 | AD144: 0.02357 | AE144: -0.13371 | AF144: -0.061 | AG144: 0.23245 | AH144: 0.25563
A145: 1.5 | F145: @AAPL 200124C00310000 | G145: 2020-01-06T13:47:59-05:00 | H145: 2.52 | I145: 0.14 | J145: 5.8824 | K145: 1 | L145: 1.88 | M145: 3.05 | N145: 1.5 | O145: 2.38 | P145: 2.55 | Q145: 2.59 | R145: 4 | S145: 62 | T145: 628 | U145: 2020-01-06T13:41:02 | V145: Call | W145: 2020-01-24 | X145: 310 | Y145: 1768 | Z145: 3.79999995 | AA145: 0.25 | AB145: WEEK | AC145: 0.26775 | AD145: 0.02468 | AE145: -0.1775 | AF145: 0.03879 | AG145: 0.19335 | AH145: 0.24179
A146: 15.7 | F146: @AAPL 200124P00312500 | G146: 2020-01-06T13:47:59-05:00 | H146: 16.15 | I146: -0.45 | J146: -2.7108 | K146: 1 | L146: 15.7 | M146: 16.15 | N146: 15.7 | O146: 16.6 | P146: 15.1 | Q146: 15.25 | R146: 29 | S146: 46 | T146: 9 | U146: 2020-01-06T12:12:09 | V146: Put | W146: 2020-01-24 | X146: 312.5 | Y146: 14 | Z146: 21.5799999 | AA146: 16.1499996 | AB146: WEEK | AC146: -0.76433 | AD146: 0.02169 | AE146: -0.1237 | AF146: -0.06081 | AG146: 0.17596 | AH146: 0.29185
A147: 1.1 | F147: @AAPL 200124C00312500 | G147: 2020-01-06T13:47:59-05:00 | H147: 2.02 | I147: 0.07 | J147: 3.5897 | K147: 0 | L147: 1.51 | M147: 2.36 | N147: 1.1 | O147: 1.95 | P147: 2 | Q147: 2.03 | R147: 36 | S147: 8 | T147: 694 | U147: 2020-01-06T13:47:54 | V147: Call | W147: 2020-01-24 | X147: 312.5 | Y147: 582 | Z147: 3.0999999 | AA147: 0.319999992 | AB147: WEEK | AC147: 0.22341 | AD147: 0.02122 | AE147: -0.15949 | AF147: 0.03238 | AG147: 0.19757 | AH147: 0.18969
A148: 18.2 | F148: @AAPL 200124P00315000 | G148: 2020-01-06T13:47:59-05:00 | H148: 18.55 | I148: 1.55 | J148: 9.1176 | K148: 1 | L148: 20.75 | M148: 20.75 | N148: 18.2 | O148: 17 | P148: 17.15 | Q148: 17.3 | R148: 43 | S148: 11 | T148: 9 | U148: 2020-01-06T12:14:20 | V148: Put | W148: 2020-01-24 | X148: 315 | Y148: 22 | Z148: 22.709999 | AA148: 16.9500007 | AB148: WEEK | AC148: -0.82996 | AD148: 0.02091 | AE148: -0.07654 | AF148: -0.06133 | AG148: 0.16971 | AH148: 0.25572
A149: 1 | F149: @AAPL 200124C00315000 | G149: 2020-01-06T13:47:59-05:00 | H149: 1.56 | I149: 0.05 | J149: 3.3113 | K149: 1 | L149: 1.08 | M149: 1.9 | N149: 1 | O149: 1.51 | P149: 1.57 | Q149: 1.61 | R149: 40 | S149: 33 | T149: 725 | U149: 2020-01-06T13:42:57 | V149: Call | W149: 2020-01-24 | X149: 315 | Y149: 707 | Z149: 2.51999998 | AA149: 0.180000007 | AB149: WEEK | AC149: 0.21438 | AD149: 0.01783 | AE149: -0.17576 | AF149: 0.03091 | AG149: 0.19587 | AH149: 0.22736
A150: 0.8 | F150: @AAPL 200124C00317500 | G150: 2020-01-06T13:47:59-05:00 | H150: 1.21 | I150: -0.01 | J150: -0.819672 | K150: 0 | L150: 0.8 | M150: 1.45 | N150: 0.8 | O150: 1.22 | P150: 1.24 | Q150: 1.27 | R150: 3 | S150: 50 | T150: 159 | U150: 2020-01-06T13:32:15 | V150: Call | W150: 2020-01-24 | X150: 317.5 | Y150: 332 | Z150: 2.05999994 | AA150: 0.230000004 | AB150: WEEK | AC150: 0.12886 | AD150: 0.01512 | AE150: -0.11295 | AF150: 0.01877 | AG150: 0.20726 | AH150: 0.22263
A151: 0.59 | F151: @AAPL 200124C00320000 | G151: 2020-01-06T13:47:59-05:00 | H151: 1 | I151: 0.09 | J151: 9.8901 | K151: 1 | L151: 0.67 | M151: 1.21 | N151: 0.59 | O151: 0.91 | P151: 0.97 | Q151: 1 | R151: 23 | S151: 51 | T151: 326 | U151: 2020-01-06T13:47:53 | V151: Call | W151: 2020-01-24 | X151: 320 | Y151: 4857 | Z151: 1.61000001 | AA151: 0.180000007 | AB151: WEEK | AC151: 0.12996 | AD151: 0.01324 | AE151: -0.12706 | AF151: 0.01884 | AG151: 0.20407 | AH151: 0.21872
A152: 0.61 | F152: @AAPL 200124C00322500 | G152: 2020-01-06T13:47:59-05:00 | H152: 0.72 | I152: 0 | J152: 0 | K152: 1 | L152: 0.61 | M152: 0.97 | N152: 0.61 | O152: 0.72 | P152: 0.77 | Q152: 0.8 | R152: 21 | S152: 48 | T152: 16 | U152: 2020-01-06T12:29:30 | V152: Call | W152: 2020-01-24 | X152: 322.5 | Y152: 217 | Z152: 1.25 | AA152: 0.910000026 | AB152: WEEK | AC152: 0.10209 | AD152: 0.0112 | AE152: -0.10567 | AF152: 0.01484 | AG152: 0.0894 | AH152: 0.18657
A153: 0.32 | F153: @AAPL 200124C00325000 | G153: 2020-01-06T13:47:59-05:00 | H153: 0.63 | I153: 0.06 | J153: 10.5263 | K153: 1 | L153: 0.32 | M153: 0.77 | N153: 0.32 | O153: 0.57 | P153: 0.62 | Q153: 0.64 | R153: 17 | S153: 62 | T153: 124 | U153: 2020-01-06T13:45:21 | V153: Call | W153: 2020-01-24 | X153: 325 | Y153: 407 | Z153: 1.12 | AA153: 0.330000013 | AB153: WEEK | AC153: 0.08331 | AD153: 0.00935 | AE153: -0.08844 | AF153: 0.01211 | AG153: 0.0912 | AH153: 0.28122
A154: =N154 -> 0.4 | F154: @AAPL 200124C00327500 | G154: 2020-01-06T13:47:59-05:00 | H154: 0.5 | I154: -0.1 | J154: -16.6667 | K154: 1 | L154: 0.4 | M154: 0.62 | N154: 0.4 | O154: 0.6 | P154: 0.5 | Q154: 0.53 | R154: 19 | S154: 84 | T154: 154 | U154: 2020-01-06T13:13:57 | V154: Call | W154: 2020-01-24 | X154: 327.5 | Y154: 66 | Z154: 0.899999976 | AA154: 0.51999998 | AB154: WEEK | AC154: 0.06238 | AD154: 0.00738 | AE154: -0.06846 | AF154: 0.00908 | AG154: 0.09333 | AH154: 0.24997
A155: 1.58 | F155: @AAPL 200131P00270000 | G155: 2020-01-06T13:47:59-05:00 | H155: 1.58 | I155: -0.42 | J155: -21 | K155: -1 | L155: 2.48 | M155: 2.75 | N155: 1.58 | O155: 2 | P155: 1.56 | Q155: 1.6 | R155: 16 | S155: 49 | T155: 635 | U155: 2020-01-06T13:31:20 | V155: Put | W155: 2020-01-31 | X155: 270 | Y155: 1391 | Z155: 9.89999961 | AA155: 1.75999999 | AB155: WEEK | AC155: -0.09158 | AD155: 0.00656 | AE155: -0.08617 | AF155: -0.0173 | AG155: 0.16902 | AH155: 0.35892
A156: 28.45 | F156: @AAPL 200131C00270000 | G156: 2020-01-06T13:47:59-05:00 | H156: 29.97 | I156: -1.99 | J156: -6.2265 | K156: -1 | L156: 28.45 | M156: 31.5 | N156: 28.45 | O156: 31.96 | P156: 30.9 | Q156: 31.1 | R156: 98 | S156: 25 | T156: 53 | U156: 2020-01-06T12:29:27 | V156: Call | W156: 2020-01-31 | X156: 270 | Y156: 352 | Z156: 32.4000015 | AA156: 9.39999961 | AB156: WEEK | AC156: 0.99936 | AD156: 0 | AE156: -0.11065 | AF156: 0.18366 | AG156: 0 | AH156: 0.03235
A157: 1.9 | F157: @AAPL 200131P00272500 | G157: 2020-01-06T13:47:59-05:00 | H157: 1.92 | I157: -0.39 | J157: -16.8831 | K157: 1 | L157: 2.54 | M157: 2.57 | N157: 1.9 | O157: 2.31 | P157: 1.86 | Q157: 1.89 | R157: 3 | S157: 48 | T157: 54 | U157: 2020-01-06T13:39:48 | V157: Put | W157: 2020-01-31 | X157: 272.5 | Y157: 383 | Z157: 12.1000003 | AA157: 2.0999999 | AB157: WEEK | AC157: -0.11151 | AD157: 0.00758 | AE157: -0.09591 | AF157: -0.02158 | AG157: 0.17121 | AH157: 0.34064
A158: 2.22 | F158: @AAPL 200131P00275000 | G158: 2020-01-06T13:47:59-05:00 | H158: 2.22 | I158: -0.48 | J158: -17.7778 | K158: -1 | L158: 3.3 | M158: 3.5 | N158: 2.22 | O158: 2.7 | P158: 2.2 | Q158: 2.24 | R158: 15 | S158: 30 | T158: 240 | U158: 2020-01-06T13:46:58 | V158: Put | W158: 2020-01-31 | X158: 275 | Y158: 1933 | Z158: 10.0699996 | AA158: 2.43000006 | AB158: WEEK | AC158: -0.14685 | AD158: 0.00874 | AE158: -0.12278 | AF158: -0.02881 | AG158: 0.17634 | AH158: 0.31819
A159: 26.15 | F159: @AAPL 200131C00275000 | G159: 2020-01-06T13:47:59-05:00 | H159: 26.15 | I159: 0 | J159: 0 | K159: 0 | L159: 26.15 | M159: 26.15 | N159: 26.15 | O159: 26.15 | P159: 26.55 | Q159: 26.75 | R159: 59 | S159: 15 | T159: 3 | U159: 2020-01-06T11:55:02 | V159: Call | W159: 2020-01-31 | X159: 275 | Y159: 664 | Z159: 27.5 | AA159: 7.01000022 | AB159: WEEK | AC159: 0.99557 | AD159: 0.00102 | AE159: -0.11499 | AF159: 0.18629 | AG159: 0.01138 | AH159: 0.2168
A160: 2.67 | F160: @AAPL 200131P00277500 | G160: 2020-01-06T13:47:59-05:00 | H160: 2.67 | I160: -0.46 | J160: -14.6965 | K160: 0 | L160: 3.87 | M160: 3.87 | N160: 2.67 | O160: 3.13 | P160: 2.61 | Q160: 2.65 | R160: 9 | S160: 2 | T160: 84 | U160: 2020-01-06T13:39:24 | V160: Put | W160: 2020-01-31 | X160: 277.5 | Y160: 696 | Z160: 8.5 | AA160: 2.92000007 | AB160: WEEK | AC160: -0.15379 | AD160: 0.0098 | AE160: -0.11646 | AF160: -0.03018 | AG160: 0.17644 | AH160: 0.33656
A161: 23.58 | F161: @AAPL 200131C00277500 | G161: 2020-01-06T13:47:59-05:00 | H161: 23.95 | I161: 0.07 | J161: 0.293132 | K161: 0 | L161: 23.58 | M161: 23.95 | N161: 23.58 | O161: 23.88 | P161: 24.45 | Q161: 24.7 | R161: 80 | S161: 37 | T161: 22 | U161: 2020-01-06T13:06:30 | V161: Call | W161: 2020-01-31 | X161: 277.5 | Y161: 282 | Z161: 26.1499996 | AA161: 6.0999999 | AB161: WEEK | AC161: 0.93924 | AD161: 0.00746 | AE161: -0.15375 | AF161: 0.17624 | AG161: 0.10172 | AH161: 0.18885
A162: 3.1 | F162: @AAPL 200131P00280000 | G162: 2020-01-06T13:47:59-05:00 | H162: 3.1 | I162: -0.54 | J162: -14.8352 | K162: 0 | L162: 4.54 | M162: 4.82 | N162: 3.1 | O162: 3.64 | P162: 3.05 | Q162: 3.15 | R162: 92 | S162: 44 | T162: 368 | U162: 2020-01-06T13:47:54 | V162: Put | W162: 2020-01-31 | X162: 280 | Y162: 1525 | Z162: 11.4300003 | AA162: 3.29999995 | AB162: WEEK | AC162: -0.18237 | AD162: 0.01095 | AE162: -0.13577 | AF162: -0.03498 | AG162: 0.18266 | AH162: 0.38739
A163: 17.3 | F163: @AAPL 200131C00280000 | G163: 2020-01-06T13:47:59-05:00 | H163: 22.4 | I163: 0.55 | J163: 2.5172 | K163: 1 | L163: 17.3 | M163: 22.96 | N163: 17.3 | O163: 21.85 | P163: 22.55 | Q163: 22.65 | R163: 14 | S163: 27 | T163: 67 | U163: 2020-01-06T13:39:25 | V163: Call | W163: 2020-01-31 | X163: 280 | Y163: 975 | Z163: 23.9300003 | AA163: 5.07999992 | AB163: WEEK | AC163: 0.91169 | AD163: 0.00955 | AE163: -0.16524 | AF163: 0.17212 | AG163: 0.16107 | AH163: 0.20856
A164: 3.7 | F164: @AAPL 200131P00282500 | G164: 2020-01-06T13:47:59-05:00 | H164: 3.7 | I164: -0.41 | J164: -9.9757 | K164: -1 | L164: 4.7 | M164: 5.12 | N164: 3.7 | O164: 4.11 | P164: 3.65 | Q164: 3.75 | R164: 5 | S164: 109 | T164: 108 | U164: 2020-01-06T13:41:14 | V164: Put | W164: 2020-01-31 | X164: 282.5 | Y164: 680 | Z164: 14 | AA164: 3.90000009 | AB164: WEEK | AC164: -0.22879 | AD164: 0.01159 | AE164: -0.17378 | AF164: -0.04063 | AG164: 0.27716 | AH164: 0.34609
A165: 15.65 | F165: @AAPL 200131C00282500 | G165: 2020-01-06T13:47:59-05:00 | H165: 19.6 | I165: -1.75 | J165: -8.1967 | K165: -1 | L165: 15.65 | M165: 19.95 | N165: 15.65 | O165: 21.35 | P165: 20.6 | Q165: 20.7 | R165: 27 | S165: 46 | T165: 13 | U165: 2020-01-06T12:55:15 | V165: Call | W165: 2020-01-31 | X165: 282.5 | Y165: 534 | Z165: 22.3500003 | AA165: 5.03999996 | AB165: WEEK | AC165: 0.84928 | AD165: 0.01231 | AE165: -0.20016 | AF165: 0.16045 | AG165: 0.17244 | AH165: 0.22605
A166: 4.39 | F166: @AAPL 200131P00285000 | G166: 2020-01-06T13:47:59-05:00 | H166: 4.39 | I166: -0.66 | J166: -13.0693 | K166: -1 | L166: 6 | M166: 6.38 | N166: 4.39 | O166: 5.05 | P166: 4.25 | Q166: 4.35 | R166: 40 | S166: 21 | T166: 150 | U166: 2020-01-06T13:36:14 | V166: Put | W166: 2020-01-31 | X166: 285 | Y166: 991 | Z166: 12 | AA166: 4.51000022 | AB166: WEEK | AC166: -0.25878 | AD166: 0.01237 | AE166: -0.17547 | AF166: -0.04635 | AG166: 0.2805 | AH166: 0.39347
A167: 14.8 | F167: @AAPL 200131C00285000 | G167: 2020-01-06T13:47:59-05:00 | H167: 18.73 | I167: 0.63 | J167: 3.4807 | K167: 0 | L167: 14.97 | M167: 19.41 | N167: 14.8 | O167: 18.1 | P167: 18.75 | Q167: 18.85 | R167: 15 | S167: 42 | T167: 296 | U167: 2020-01-06T13:38:31 | V167: Call | W167: 2020-01-31 | X167: 285 | Y167: 984 | Z167: 20.25 | AA167: 3.65000009 | AB167: WEEK | AC167: 0.84648 | AD167: 0.01432 | AE167: -0.18965 | AF167: 0.16174 | AG167: 0.17069 | AH167: 0.19779
A168: 5.08 | F168: @AAPL 200131P00287500 | G168: 2020-01-06T13:47:59-05:00 | H168: 5.08 | I168: -0.67 | J168: -11.6522 | K168: -1 | L168: 7.28 | M168: 7.28 | N168: 5.08 | O168: 5.75 | P168: 5 | Q168: 5.1 | R168: 36 | S168: 65 | T168: 51 | U168: 2020-01-06T13:32:52 | V168: Put | W168: 2020-01-31 | X168: 287.5 | Y168: 379 | Z168: 13.0799999 | AA168: 5.2800002 | AB168: WEEK | AC168: -0.30033 | AD168: 0.01256 | AE168: -0.19308 | AF168: -0.05558 | AG168: 0.28546 | AH168: 0.35923
A169: 14.55 | F169: @AAPL 200131C00287500 | G169: 2020-01-06T13:47:59-05:00 | H169: 16.75 | I169: 0.35 | J169: 2.1341 | K169: 1 | L169: 14.89 | M169: 17.65 | N169: 14.55 | O169: 16.4 | P169: 16.95 | Q169: 17.1 | R169: 14 | S169: 44 | T169: 64 | U169: 2020-01-06T13:25:02 | V169: Call | W169: 2020-01-31 | X169: 287.5 | Y169: 1189 | Z169: 18.5499992 | AA169: 3.65000009 | AB169: WEEK | AC169: 0.78737 | AD169: 0.0159 | AE169: -0.2234 | AF169: 0.15065 | AG169: 0.27051 | AH169: 0.24387
A170: 5.9 | F170: @AAPL 200131P00290000 | G170: 2020-01-06T13:47:59-05:00 | H170: 5.9 | I170: -0.65 | J170: -9.9237 | K170: 0 | L170: 8 | M170: 8.5 | N170: 5.9 | O170: 6.55 | P170: 5.8 | Q170: 5.9 | R170: 77 | S170: 21 | T170: 429 | U170: 2020-01-06T13:47:03 | V170: Put | W170: 2020-01-31 | X170: 290 | Y170: 1279 | Z170: 14.8000001 | AA170: 5.9499998 | AB170: WEEK | AC170: -0.33687 | AD170: 0.01282 | AE170: -0.20742 | AF170: -0.06372 | AG170: 0.28966 | AH170: 0.3615
A171: 11.83 | F171: @AAPL 200131C00290000 | G171: 2020-01-06T13:47:59-05:00 | H171: 15.2 | I171: 0.4 | J171: 2.7027 | K171: -1 | L171: 11.96 | M171: 15.85 | N171: 11.83 | O171: 14.8 | P171: 15.3 | Q171: 15.4 | R171: 9 | S171: 40 | T171: 978 | U171: 2020-01-06T13:41:58 | V171: Call | W171: 2020-01-31 | X171: 290 | Y171: 1622 | Z171: 17 | AA171: 2.81999993 | AB171: WEEK | AC171: 0.73644 | AD171: 0.01722 | AE171: -0.22985 | AF171: 0.14132 | AG171: 0.27734 | AH171: 0.28004
A172: 6.85 | F172: @AAPL 200131P00292500 | G172: 2020-01-06T13:47:59-05:00 | H172: 6.85 | I172: -0.4 | J172: -5.5172 | K172: 0 | L172: 10.24 | M172: 10.24 | N172: 6.85 | O172: 7.25 | P172: 6.7 | Q172: 6.85 | R172: 82 | S172: 49 | T172: 179 | U172: 2020-01-06T13:46:33 | V172: Put | W172: 2020-01-31 | X172: 292.5 | Y172: 402 | Z172: 15.17 | AA172: 6.8499999 | AB172: WEEK | AC172: -0.35913 | AD172: 0.01476 | AE172: -0.18705 | AF172: -0.06563 | AG172: 0.29189 | AH172: 0.36213
A173: 10 | F173: @AAPL 200131C00292500 | G173: 2020-01-06T13:47:59-05:00 | H173: 13.15 | I173: -0.21 | J173: -1.5719 | K173: 1 | L173: 10 | M173: 14.14 | N173: 10 | O173: 13.36 | P173: 13.7 | Q173: 13.8 | R173: 67 | S173: 16 | T173: 93 | U173: 2020-01-06T13:06:26 | V173: Call | W173: 2020-01-31 | X173: 292.5 | Y173: 769 | Z173: 15.3000001 | AA173: 2.48000001 | AB173: WEEK | AC173: 0.67475 | AD173: 0.01679 | AE173: -0.25611 | AF173: 0.12917 | AG173: 0.28672 | AH173: 0.24837
A174: 7.8 | F174: @AAPL 200131P00295000 | G174: 2020-01-06T13:47:59-05:00 | H174: 7.8 | I174: -0.72 | J174: -8.4507 | K174: -1 | L174: 8.9 | M174: 10.15 | N174: 7.8 | O174: 8.52 | P174: 7.75 | Q174: 7.85 | R174: 67 | S174: 36 | T174: 315 | U174: 2020-01-06T13:47:06 | V174: Put | W174: 2020-01-31 | X174: 295 | Y174: 444 | Z174: 18.2999992 | AA174: 7.86000013 | AB174: WEEK | AC174: -0.39766 | AD174: 0.01503 | AE174: -0.20208 | AF174: -0.07153 | AG174: 0.29596 | AH174: 0.2964
F175: @AAPL 200131C00295000 | G175: 2020-01-06T13:47:59-05:00 | H175: 12.17 | I175: 0.27 | J175: 2.2689 | K175: 1 | L175: 9.47 | M175: 12.9 | N175: 7.4 | O175: 11.9 | P175: 12.2 | Q175: 12.35 | R175: 66 | S175: 51 | T175: 394 | U175: 2020-01-06T13:31:01 | V175: Call | W175: 2020-01-31 | X175: 295 | Y175: 827 | Z175: 13.8500003 | AA175: 2 | AB175: WEEK | AC175: 0.63241 | AD175: 0.01779 | AE175: -0.26214 | AF175: 0.1216 | AG175: 0.29209 | AH175: 0.27715
F176: @AAPL 200131P00297500 | G176: 2020-01-06T13:47:59-05:00 | H176: 8.97 | I176: -0.93 | J176: -9.3939 | K176: -1 | L176: 11.5 | M176: 11.6 | N176: 8.95 | O176: 9.9 | P176: 8.85 | Q176: 8.95 | R176: 62 | S176: 21 | T176: 5466 | U176: 2020-01-06T13:46:58 | V176: Put | W176: 2020-01-31 | X176: 297.5 | Y176: 298 | Z176: 20.2299995 | AA176: 8.89999961 | AB176: WEEK | AC176: -0.43308 | AD176: 0.01716 | AE176: -0.19149 | AF176: -0.07116 | AG176: 0.29982 | AH176: 0.35594
F177: @AAPL 200131C00297500 | G177: 2020-01-06T13:47:59-05:00 | H177: 10.8 | I177: 0.28 | J177: 2.6616 | K177: -1 | L177: 6.25 | M177: 11.45 | N177: 6.25 | O177: 10.52 | P177: 10.85 | Q177: 10.95 | R177: 20 | S177: 47 | T177: 743 | U177: 2020-01-06T13:46:50 | V177: Call | W177: 2020-01-31 | X177: 297.5 | Y177: 658 | Z177: 12.3500003 | AA177: 1.75 | AB177: WEEK | AC177: 0.59079 | AD177: 0.019 | AE177: -0.26582 | AF177: 0.11426 | AG177: 0.29735 | AH177: 0.27532
F178: @AAPL 200131P00300000 | G178: 2020-01-06T13:47:59-05:00 | H178: 10.14 | I178: -0.96 | J178: -8.6486 | K178: -1 | L178: 13.5 | M178: 13.5 | N178: 10.14 | O178: 11.1 | P178: 10.05 | Q178: 10.2 | R178: 63 | S178: 72 | T178: 798 | U178: 2020-01-06T13:47:06 | V178: Put | W178: 2020-01-31 | X178: 300 | Y178: 1005 | Z178: 20.75 | AA178: 10 | AB178: WEEK | AC178: -0.47456 | AD178: 0.01821 | AE178: -0.18027 | AF178: -0.07282 | AG178: 0.30267 | AH178: 0.3148
F179: @AAPL 200131C00300000 | G179: 2020-01-06T13:47:59-05:00 | H179: 9.5 | I179: 0.25 | J179: 2.7027 | K179: -1 | L179: 7.45 | M179: 10.25 | N179: 6.93 | O179: 9.25 | P179: 9.55 | Q179: 9.65 | R179: 72 | S179: 21 | T179: 2418 | U179: 2020-01-06T13:46:50 | V179: Call | W179: 2020-01-31 | X179: 300 | Y179: 17805 | Z179: 11.1000003 | AA179: 1.75 | AB179: WEEK | AC179: 0.54675 | AD179: 0.01925 | AE179: -0.26836 | AF179: 0.10611 | AG179: 0.30295 | AH179: 0.27379
F180: @AAPL 200131P00302500 | G180: 2020-01-06T13:47:59-05:00 | H180: 11.75 | I180: -0.15 | J180: -1.2605 | K180: 0 | L180: 12.11 | M180: 12.4 | N180: 11.45 | O180: 11.9 | P180: 11.35 | Q180: 11.5 | R180: 68 | S180: 28 | T180: 65 | U180: 2020-01-06T13:15:04 | V180: Put | W180: 2020-01-31 | X180: 302.5 | Y180: 151 | Z180: 21.9699993 | AA180: 11.5500001 | AB180: WEEK | AC180: -0.5088 | AD180: 0.01569 | AE180: -0.20307 | AF180: -0.08095 | AG180: 0.30637 | AH180: 0.34763
F181: @AAPL 200131C00302500 | G181: 2020-01-06T13:47:59-05:00 | H181: 8.41 | I181: 0.26 | J181: 3.1902 | K181: 1 | L181: 7.69 | M181: 8.99 | N181: 6.4 | O181: 8.15 | P181: 8.35 | Q181: 8.45 | R181: 67 | S181: 7 | T181: 313 | U181: 2020-01-06T13:47:06 | V181: Call | W181: 2020-01-31 | X181: 302.5 | Y181: 640 | Z181: 9.80000019 | AA181: 1.28999996 | AB181: WEEK | AC181: 0.50187 | AD181: 0.01887 | AE181: -0.25928 | AF181: 0.09758 | AG181: 0.30863 | AH181: 0.28065
F182: @AAPL 200131P00305000 | G182: 2020-01-06T13:47:59-05:00 | H182: 14 | I182: 0.1 | J182: 0.719424 | K182: 1 | L182: 15.45 | M182: 15.45 | N182: 13.2 | O182: 13.9 | P182: 12.8 | Q182: 12.9 | R182: 52 | S182: 12 | T182: 54 | U182: 2020-01-06T12:18:39 | V182: Put | W182: 2020-01-31 | X182: 305 | Y182: 256 | Z182: 24.0599994 | AA182: 12.75 | AB182: WEEK | AC182: -0.54468 | AD182: 0.01548 | AE182: -0.19433 | AF182: -0.08886 | AG182: 0.31032 | AH182: 0.35123
F183: @AAPL 200131C00305000 | G183: 2020-01-06T13:47:59-05:00 | H183: 7.35 | I183: -0.7 | J183: -8.6957 | K183: 1 | L183: 4.95 | M183: 7.85 | N183: 4.77 | O183: 8.05 | P183: 7.3 | Q183: 7.4 | R183: 24 | S183: 86 | T183: 389 | U183: 2020-01-06T13:47:45 | V183: Call | W183: 2020-01-31 | X183: 305 | Y183: 1695 | Z183: 8.64999961 | AA183: 1.16999995 | AB183: WEEK | AC183: 0.44766 | AD183: 0.02072 | AE183: -0.22659 | AF183: 0.08786 | AG183: 0.31653 | AH183: 0.28137
F184: @AAPL 200131P00307500 | G184: 2020-01-06T13:47:59-05:00 | H184: 16.58 | I184: 1.83 | J184: 12.4068 | K184: -1 | L184: 17.1 | M184: 17.1 | N184: 16.58 | O184: 14.75 | P184: 14.3 | Q184: 14.45 | R184: 64 | S184: 68 | T184: 54 | U184: 2020-01-06T09:36:46 | V184: Put | W184: 2020-01-31 | X184: 307.5 | Y184: 192 | Z184: 23.25 | AA184: 14.75 | AB184: WEEK | AC184: -0.57404 | AD184: 0.01448 | AE184: -0.20019 | AF184: -0.09169 | AG184: 0.31336 | AH184: 0.35082
F185: @AAPL 200131C00307500 | G185: 2020-01-06T13:47:59-05:00 | H185: 6.15 | I185: 0.03 | J185: 0.490196 | K185: 1 | L185: 5.05 | M185: 6.9 | N185: 5.05 | O185: 6.12 | P185: 6.3 | Q185: 6.4 | R185: 85 | S185: 27 | T185: 71 | U185: 2020-01-06T13:21:29 | V185: Call | W185: 2020-01-31 | X185: 307.5 | Y185: 437 | Z185: 7.55000019 | AA185: 1.29999995 | AB185: WEEK | AC185: 0.40796 | AD185: 0.0187 | AE185: -0.23385 | AF185: 0.07989 | AG185: 0.32087 | AH185: 0.28564
F186: @AAPL 200131P00310000 | G186: 2020-01-06T13:47:59-05:00 | H186: 16.05 | I186: -0.7 | J186: -4.1791 | K186: -1 | L186: 17.2 | M186: 17.2 | N186: 16.05 | O186: 16.75 | P186: 15.95 | Q186: 16.1 | R186: 8 | S186: 51 | T186: 6 | U186: 2020-01-06T11:31:22 | V186: Put | W186: 2020-01-31 | X186: 310 | Y186: 57 | Z186: 24.25 | AA186: 16.7000007 | AB186: WEEK | AC186: -0.62322 | AD186: 0.01571 | AE186: -0.17491 | AF186: -0.09507 | AG186: 0.31101 | AH186: 0.32692
F187: @AAPL 200131C00310000 | G187: 2020-01-06T13:47:59-05:00 | H187: 5.48 | I187: -0.77 | J187: -12.32 | K187: 1 | L187: 4.1 | M187: 6 | N187: 3.97 | O187: 6.25 | P187: 5.45 | Q187: 5.55 | R187: 15 | S187: 68 | T187: 850 | U187: 2020-01-06T13:47:00 | V187: Call | W187: 2020-01-31 | X187: 310 | Y187: 1302 | Z187: 6.65000009 | AA187: 0.75 | AB187: WEEK | AC187: 0.38673 | AD187: 0.01583 | AE187: -0.25979 | AF187: 0.07516 | AG187: 0.32194 | AH187: 0.28158
F188: @AAPL 200131P00312500 | G188: 2020-01-06T13:47:59-05:00 | H188: 19.2 | I188: 0.4 | J188: 2.1277 | K188: 1 | L188: 19.2 | M188: 19.2 | N188: 19.2 | O188: 18.8 | P188: 17.65 | Q188: 17.8 | R188: 42 | S188: 19 | T188: 1 | U188: 2020-01-06T10:22:53 | V188: Put | W188: 2020-01-31 | X188: 312.5 | Y188: 61 | Z188: 24.9500007 | AA188: 17.7999992 | AB188: WEEK | AC188: -0.66199 | AD188: 0.01561 | AE188: -0.1681 | AF188: -0.09498 | AG188: 0.31493 | AH188: 0.3689
F189: @AAPL 200131C00312500 | G189: 2020-01-06T13:47:59-05:00 | H189: 4.7 | I189: 0.03 | J189: 0.642398 | K189: 1 | L189: 3.9 | M189: 5.16 | N189: 3.9 | O189: 4.67 | P189: 4.65 | Q189: 4.75 | R189: 47 | S189: 83 | T189: 66 | U189: 2020-01-06T13:47:06 | V189: Call | W189: 2020-01-31 | X189: 312.5 | Y189: 385 | Z189: 5.75 | AA189: 0.980000019 | AB189: WEEK | AC189: 0.30917 | AD189: 0.01834 | AE189: -0.20918 | AF189: 0.06116 | AG189: 0.32085 | AH189: 0.24961
F190: @AAPL 200131P00315000 | G190: 2020-01-06T13:47:59-05:00 | H190: 20.1 | I190: 0.45 | J190: 2.2901 | K190: 1 | L190: 19.82 | M190: 20.1 | N190: 19.82 | O190: 19.65 | P190: 19.5 | Q190: 19.6 | R190: 5 | S190: 40 | T190: 7 | U190: 2020-01-06T11:51:14 | V190: Put | W190: 2020-01-31 | X190: 315 | Y190: 73 | Z190: 25 | AA190: 19.5599994 | AB190: WEEK | AC190: -0.68104 | AD190: 0.01417 | AE190: -0.18069 | AF190: -0.09494 | AG190: 0.29899 | AH190: 0.3903
F191: @AAPL 200131C00315000 | G191: 2020-01-06T13:47:59-05:00 | H191: 4 | I191: 0.1 | J191: 2.5641 | K191: -1 | L191: 2.91 | M191: 4.45 | N191: 2.9 | O191: 3.9 | P191: 3.95 | Q191: 4.05 | R191: 63 | S191: 68 | T191: 863 | U191: 2020-01-06T13:43:14 | V191: Call | W191: 2020-01-31 | X191: 315 | Y191: 740 | Z191: 5 | AA191: 0.560000002 | AB191: WEEK | AC191: 0.28637 | AD191: 0.01637 | AE191: -0.20776 | AF191: 0.05652 | AG191: 0.22482 | AH191: 0.28086
F192: @AAPL 200131P00317500 | G192: 2020-01-06T13:47:59-05:00 | H192: 22.2 | K192: 1 | L192: 24 | M192: 24 | N192: 22 | P192: 21.4 | Q192: 21.5 | R192: 5 | S192: 37 | T192: 19 | U192: 2020-01-06T12:49:46 | V192: Put | W192: 2020-01-31 | X192: 317.5 | Y192: 0 | AB192: WEEK | AC192: -0.74529 | AD192: 0.0153 | AE192: -0.1397 | AF192: -0.08372 | AG192: 0.21235 | AH192: 0.3727
F193: @AAPL 200131C00317500 | G193: 2020-01-06T13:47:59-05:00 | H193: 3.4 | I193: 0.1 | J193: 3.0303 | K193: 1 | L193: 2.17 | M193: 3.85 | N193: 2.17 | O193: 3.3 | P193: 3.35 | Q193: 3.45 | R193: 62 | S193: 76 | T193: 201 | U193: 2020-01-06T13:46:42 | V193: Call | W193: 2020-01-31 | X193: 317.5 | Y193: 172 | Z193: 4.4499998 | AA193: 0.589999973 | AB193: WEEK | AC193: 0.25464 | AD193: 0.01508 | AE193: -0.1904 | AF193: 0.05031 | AG193: 0.22883 | AH193: 0.28137
F194: @AAPL 200131P00320000 | G194: 2020-01-06T13:47:59-05:00 | H194: 23.5 | I194: 0.4 | J194: 1.7316 | K194: -1 | L194: 23.65 | M194: 23.65 | N194: 23.5 | O194: 23.1 | P194: 23.4 | Q194: 23.5 | R194: 4 | S194: 59 | T194: 7 | U194: 2020-01-06T11:37:00 | V194: Put | W194: 2020-01-31 | X194: 320 | Y194: 3 | Z194: 29.7999992 | AA194: 23 | AB194: WEEK | AC194: -0.7721 | AD194: 0.01458 | AE194: -0.12656 | AF194: -0.08853 | AG194: 0.20962 | AH194: 0.31194
F195: @AAPL 200131C00320000 | G195: 2020-01-06T13:47:59-05:00 | H195: 2.89 | I195: 0.05 | J195: 1.7606 | K195: 1 | L195: 1.48 | M195: 3.21 | N195: 1.48 | O195: 2.84 | P195: 2.88 | Q195: 2.94 | R195: 4 | S195: 48 | T195: 606 | U195: 2020-01-06T13:47:00 | V195: Call | W195: 2020-01-31 | X195: 320 | Y195: 2527 | Z195: 3.80999994 | AA195: 0.349999994 | AB195: WEEK | AC195: 0.18781 | AD195: 0.01399 | AE195: -0.13881 | AF195: 0.03742 | AG195: 0.23992 | AH195: 0.28065
F196: @AAPL 200131P00322500 | G196: 2020-01-06T13:47:59-05:00 | H196: 25.85 | K196: 0 | L196: 25.5 | M196: 25.85 | N196: 25.5 | P196: 25.3 | Q196: 25.7 | R196: 69 | S196: 229 | T196: 6 | U196: 2020-01-06T11:43:34 | V196: Put | W196: 2020-01-31 | X196: 322.5 | Y196: 0 | AB196: WEEK | AC196: -0.78326 | AD196: 0.01333 | AE196: -0.12967 | AF196: -0.09138 | AG196: 0.21032 | AH196: 0.33516
F197: @AAPL 200131C00322500 | G197: 2020-01-06T13:47:59-05:00 | H197: 2.45 | I197: 0.07 | J197: 2.9412 | K197: 0 | L197: 2.02 | M197: 2.72 | N197: 1.97 | O197: 2.38 | P197: 2.44 | Q197: 2.49 | R197: 4 | S197: 31 | T197: 150 | U197: 2020-01-06T13:36:59 | V197: Call | W197: 2020-01-31 | X197: 322.5 | Y197: 207 | Z197: 3.21000003 | AA197: 2.38000011 | AB197: WEEK | AC197: 0.17741 | AD197: 0.01253 | AE197: -0.14241 | AF197: 0.03527 | AG197: 0.23961 | AH197: 0.27743
F198: @AAPL 200131P00325000 | G198: 2020-01-06T13:47:59-05:00 | H198: 29.3 | I198: 0.84 | J198: 2.9515 | K198: 0 | L198: 29.85 | M198: 29.85 | N198: 28.45 | O198: 28.46 | P198: 27.55 | Q198: 27.7 | R198: 14 | S198: 31 | T198: 15 | U198: 2020-01-06T12:21:03 | V198: Put | W198: 2020-01-31 | X198: 325 | Y198: 1 | Z198: 28.459999 | AA198: 28.459999 | AB198: WEEK | AC198: -0.79178 | AD198: 0.01223 | AE198: -0.13435 | AF198: -0.09379 | AG198: 0.21079 | AH198: 0.39595
F199: @AAPL 200131C00325000 | G199: 2020-01-06T13:47:59-05:00 | H199: 2.06 | I199: 0.06 | J199: 3 | K199: 0 | L199: 1.61 | M199: 2.38 | N199: 1.61 | O199: 2 | P199: 2.07 | Q199: 2.12 | R199: 3 | S199: 31 | T199: 111 | U199: 2020-01-06T13:34:11 | V199: Call | W199: 2020-01-31 | X199: 325 | Y199: 462 | Z199: 2.69000005 | AA199: 0.899999976 | AB199: WEEK | AC199: 0.19321 | AD199: 0.01127 | AE199: -0.17245 | AF199: 0.03808 | AG199: 0.2346 | AH199: 0.28311
F200: @AAPL 200131P00327500 | G200: 2020-01-06T13:47:59-05:00 | H200: 32.95 | K200: 0 | L200: 32.95 | M200: 32.95 | N200: 32.95 | P200: 29.6 | Q200: 30 | R200: 176 | S200: 242 | T200: 24 | U200: 2020-01-06T09:34:37 | V200: Put | W200: 2020-01-31 | X200: 327.5 | Y200: 0 | AB200: WEEK | AC200: -0.85943 | AD200: 0.01196 | AE200: -0.07111 | AF200: -0.06455 | AG200: 0.18617 | AH200: 0.34495
F201: @AAPL 200131C00327500 | G201: 2020-01-06T13:47:59-05:00 | H201: 1.77 | I201: 0.07 | J201: 4.1176 | K201: 1 | L201: 1.5 | M201: 1.84 | N201: 1.5 | O201: 1.7 | P201: 1.75 | Q201: 1.8 | R201: 8 | S201: 46 | T201: 105 | U201: 2020-01-06T13:36:59 | V201: Call | W201: 2020-01-31 | X201: 327.5 | Y201: 81 | Z201: 2.30999994 | AA201: 1.70000004 | AB201: WEEK | AC201: 0.14734 | AD201: 0.01015 | AE201: -0.13817 | AF201: 0.02923 | AG201: 0.24116 | AH201: 0.27378
F202: @AAPL 200207P00270000 | G202: 2020-01-06T13:47:59-05:00 | H202: 2.2 | I202: -0.32 | J202: -12.6984 | K202: -1 | L202: 3.3 | M202: 3.3 | N202: 2.2 | O202: 2.52 | P202: 2.1 | Q202: 2.18 | R202: 4 | S202: 47 | T202: 141 | U202: 2020-01-06T13:19:12 | V202: Put | W202: 2020-02-07 | X202: 270 | Y202: 186 | Z202: 4.48999977 | AA202: 2.35999989 | AB202: WEEK | AC202: -0.10532 | AD202: 0.00672 | AE202: -0.07658 | AF202: -0.02607 | AG202: 0.18798 | AH202: 0.32617
F203: @AAPL 200207P00272500 | G203: 2020-01-06T13:47:59-05:00 | H203: 2.6 | I203: -0.25 | J203: -8.7719 | K203: -1 | L203: 3.6 | M203: 3.6 | N203: 2.6 | O203: 2.85 | P203: 2.45 | Q203: 2.53 | R203: 4 | S203: 41 | T203: 42 | U203: 2020-01-06T13:08:37 | V203: Put | W203: 2020-02-07 | X203: 272.5 | Y203: 112 | Z203: 5.01999998 | AA203: 2.77999997 | AB203: WEEK | AC203: -0.14438 | AD203: 0.00777 | AE203: -0.10411 | AF203: -0.03643 | AG203: 0.19546 | AH203: 0.37467
F204: @AAPL 200207C00272500 | G204: 2020-01-06T13:47:59-05:00 | H204: 28.7 | I204: -1.05 | J204: -3.5294 | K204: -1 | L204: 28.7 | M204: 28.7 | N204: 28.7 | O204: 29.75 | P204: 29.1 | Q204: 29.6 | R204: 348 | S204: 89 | T204: 1 | U204: 2020-01-06T12:05:47 | V204: Call | W204: 2020-02-07 | X204: 272.5 | Y204: 14 | Z204: 29.75 | AA204: 20.5300006 | AB204: WEEK | AC204: 0.99918 | AD204: 0 | AE204: -0.11145 | AF204: 0.23637 | AG204: 0 | AH204: 0.01066
... 220 more rows

Sheet Notes

Sheet Lists
A1: Stratregy | B1: Category | C1: Call | E1: Bullish | F1: Bearish | G1: Volatality | J1: Enter At | L1: Strikes
A2: Long Stock | B2: The Basics | C2: Put | E2: Long Call | F2: Long Put | G2: Long Straddle | J2: Bid | L2: 1 | N2: Buy | S2: Direction
A3: Short Stock | B3: The Basics | E3: Short Put | F3: Short Call | G3: Long Stragle | J3: Ask | L3: =+L2+1 -> 2 | N3: Sell | P3: expirydate | Q3: strike | R3: Profit | S3: Call | T3: Buy
A4: Long Call | B4: The Basics | E4: Short + Covered Call | F4: Long Put Spread | G4: Long Iron Condor | J4: Mid | L4: =+L3+1 -> 3 | P4: 2020-01-10 | Q4: 270 | R4: =VLOOKUP(Q4,'Option Profit Calculator'!#REF!,10,) ->  | S4: Put | T4: Sell
A5: Short Call | B5: The Basics | E5: Short + Married Put | F5: Long Put Backspread | G5: Long Call Butterfly | J5: Limit | L5: 4 | P5: 2020-01-17 | Q5: 272.5 | R5: =VLOOKUP(Q5,'Option Profit Calculator'!#REF!,10,) -> 
A6: Long Put | B6: The Basics | E6: Short + Caller | F6: Short Call Spread | G6: Long Put Butterfy | L6: 5 | P6: 2020-01-24 | Q6: 275 | R6: =VLOOKUP(Q6,'Option Profit Calculator'!#REF!,10,) ->  | S6: CallBuy | T6: Long
A7: Short Put | B7: The Basics | E7: Long Call Spread | F7: Short Call BackSpread | G7: Short Straddle | L7: 6 | P7: 2020-01-31 | Q7: 277.5 | R7: =VLOOKUP(Q7,'Option Profit Calculator'!#REF!,10,) ->  | S7: CallSell | T7: Short
A8: Covered Call | B8: The Basics | E8: Long Call BackSpread | G8: Short Strangle | L8: 7 | P8: 2020-02-07 | Q8: 280 | R8: =VLOOKUP(Q8,'Option Profit Calculator'!#REF!,10,) ->  | S8: PutBuy | T8: Short
A9: Protective Put | B9: The Basics | E9: Short Put Spread | G9: Short Iron Condor | L9: 8 | P9: 2020-02-14 | Q9: 282.5 | R9: =VLOOKUP(Q9,'Option Profit Calculator'!#REF!,10,) ->  | S9: PutSell | T9: Long
A10: Long Straddle | B10: Straddles, Strangles, Guts | E10: Short Put BackSpread | G10: Short Call Butterfly | L10: 9 | P10: 2020-02-21 | Q10: 285 | R10: =VLOOKUP(Q10,'Option Profit Calculator'!#REF!,10,) -> 
A11: Long Strangle | B11: Straddles, Strangles, Guts | G11: Short Put Butterfly | L11: 10 | P11: 2020-03-20 | Q11: 287.5 | R11: =VLOOKUP(Q11,'Option Profit Calculator'!#REF!,10,) -> 
A12: Long Guts | B12: Straddles, Strangles, Guts | L12: 11 | P12: 2020-04-17 | Q12: 290 | R12: =VLOOKUP(Q12,'Option Profit Calculator'!#REF!,10,) -> 
A13: Short Straddle | B13: Straddles, Strangles, Guts | L13: 12 | P13: 2020-06-19 | Q13: 292.5 | R13: =VLOOKUP(Q13,'Option Profit Calculator'!#REF!,10,) -> 
A14: Short Strangle | B14: Straddles, Strangles, Guts | L14: 13 | P14: 2020-07-17 | Q14: 295 | R14: =VLOOKUP(Q14,'Option Profit Calculator'!#REF!,10,) -> 
A15: Short Guts | B15: Straddles, Strangles, Guts | L15: 14 | P15: 2020-09-18 | Q15: 297.5 | R15: =VLOOKUP(Q15,'Option Profit Calculator'!#REF!,10,) -> 
A16: Long Call Butterfly | B16: Long Call Butterfly | L16: 15 | P16: 2021-01-15 | Q16: 300 | R16: =VLOOKUP(Q16,'Option Profit Calculator'!#REF!,10,) -> 
A17: Long Put Butterfly | B17: Long Put Butterfly | L17: 16 | P17: 2021-06-18 | Q17: 302.5 | R17: =VLOOKUP(Q17,'Option Profit Calculator'!#REF!,10,) -> 
A18: Long Iron Butterfly | B18: Long Iron Butterfly | L18: 17 | P18: 2021-09-17 | Q18: 305 | R18: =VLOOKUP(Q18,'Option Profit Calculator'!#REF!,10,) -> 
A19: Long Call Condor | B19: Long Call Condor | L19: 18 | P19: 2022-01-21 | Q19: 307.5 | R19: =VLOOKUP(Q19,'Option Profit Calculator'!#REF!,10,) -> 
A20: Long Put Condor | B20: Long Put Condor | L20: 19 | Q20: 310 | R20: =VLOOKUP(Q20,'Option Profit Calculator'!#REF!,10,) -> 
A21: Long Iron Condor | B21: Long Iron Condor | L21: 20 | Q21: 312.5 | R21: =VLOOKUP(Q21,'Option Profit Calculator'!#REF!,10,) -> 
A22: Short Call Butterfly | B22: Short Call Butterfly | L22: 21 | Q22: 315 | R22: =VLOOKUP(Q22,'Option Profit Calculator'!#REF!,10,) -> 
A23: Short Put Butterfly | B23: Short Put Butterfly | L23: 22 | Q23: 317.5 | R23: =VLOOKUP(Q23,'Option Profit Calculator'!#REF!,10,) -> 
A24: Short Iron Butterfly | B24: Short Iron Butterfly | L24: 23 | Q24: 320 | R24: =VLOOKUP(Q24,'Option Profit Calculator'!#REF!,10,) -> 
A25: Short Call Condor | B25: Short Call Condor | L25: 24 | Q25: 322.5 | R25: =VLOOKUP(Q25,'Option Profit Calculator'!#REF!,10,) -> 
A26: Short Put Condor | B26: Short Put Condor | L26: 25 | Q26: 325 | R26: =VLOOKUP(Q26,'Option Profit Calculator'!#REF!,10,) -> 
A27: Short Iron Condor | B27: Short Iron Condor | L27: 26 | Q27: 327.5 | R27: =VLOOKUP(Q27,'Option Profit Calculator'!#REF!,10,) -> 
A28: Bull Call Spread | B28: Vertical Spreads, Ladders, Ratio Spreads | L28: 27 | R28: =VLOOKUP(Q28,'Option Profit Calculator'!#REF!,10,) -> 
A29: Bear Put Spread | B29: Vertical Spreads, Ladders, Ratio Spreads | L29: 28 | R29: =VLOOKUP(Q29,'Option Profit Calculator'!#REF!,10,) -> 
A30: Bear Call Spread | B30: Vertical Spreads, Ladders, Ratio Spreads | L30: 29 | R30: =VLOOKUP(Q30,'Option Profit Calculator'!#REF!,10,) -> 
A31: Bull Put Spread | B31: Vertical Spreads, Ladders, Ratio Spreads | L31: 30 | R31: =VLOOKUP(Q31,'Option Profit Calculator'!#REF!,10,) -> 
A32: Bull Call Ladder | B32: Vertical Spreads, Ladders, Ratio Spreads | L32: 31 | R32: =VLOOKUP(Q32,'Option Profit Calculator'!#REF!,10,) -> 
A33: Bull Put Ladder | B33: Vertical Spreads, Ladders, Ratio Spreads | L33: 32 | R33: =VLOOKUP(Q33,'Option Profit Calculator'!#REF!,10,) -> 
A34: Bear Call Ladder | B34: Vertical Spreads, Ladders, Ratio Spreads | L34: 33 | R34: =VLOOKUP(Q34,'Option Profit Calculator'!#REF!,10,) -> 
A35: Bear Put Ladder | B35: Vertical Spreads, Ladders, Ratio Spreads | L35: 34 | R35: =VLOOKUP(Q35,'Option Profit Calculator'!#REF!,10,) -> 
A36: Strip | B36: Vertical Spreads, Ladders, Ratio Spreads | L36: 35 | R36: =VLOOKUP(Q36,'Option Profit Calculator'!#REF!,10,) -> 
A37: Strap | B37: Vertical Spreads, Ladders, Ratio Spreads | L37: 36 | R37: =VLOOKUP(Q37,'Option Profit Calculator'!#REF!,10,) -> 
A38: Covered Short Straddle | B38: Vertical Spreads, Ladders, Ratio Spreads | L38: 37 | R38: =VLOOKUP(Q38,'Option Profit Calculator'!#REF!,10,) -> 
A39: Covered Short Strangle | B39: Vertical Spreads, Ladders, Ratio Spreads | L39: 38 | R39: =VLOOKUP(Q39,'Option Profit Calculator'!#REF!,10,) -> 
A40: Ratio Call Backspread | B40: Vertical Spreads, Ladders, Ratio Spreads | L40: 39 | R40: =VLOOKUP(Q40,'Option Profit Calculator'!#REF!,10,) -> 
A41: Ratio Put Backspread | B41: Vertical Spreads, Ladders, Ratio Spreads | L41: 40 | R41: =VLOOKUP(Q41,'Option Profit Calculator'!#REF!,10,) -> 
A42: Ratio Call Spread | B42: Vertical Spreads, Ladders, Ratio Spreads | L42: 41 | R42: =VLOOKUP(Q42,'Option Profit Calculator'!#REF!,10,) -> 
A43: Ratio Put Spread | B43: Vertical Spreads, Ladders, Ratio Spreads | L43: 42 | R43: =VLOOKUP(Q43,'Option Profit Calculator'!#REF!,10,) -> 
A44: Collar | B44: Vertical Spreads, Ladders, Ratio Spreads | L44: 43 | R44: =VLOOKUP(Q44,'Option Profit Calculator'!#REF!,10,) -> 
A45: Synthetic Call | B45: Synthetics and Others | L45: 44 | R45: =VLOOKUP(Q45,'Option Profit Calculator'!#REF!,10,) -> 
A46: Synthetic Put | B46: Synthetics and Others | L46: 45 | R46: =VLOOKUP(Q46,'Option Profit Calculator'!#REF!,10,) -> 
A47: Synthetic Long Stock | B47: Synthetics and Others | L47: 46 | R47: =VLOOKUP(Q47,'Option Profit Calculator'!#REF!,10,) -> 
A48: Synthetic Short Stock | B48: Synthetics and Others | L48: 47 | R48: =VLOOKUP(Q48,'Option Profit Calculator'!#REF!,10,) -> 
A49: Synthetic Long Straddle w Calls | B49: Synthetics and Others | L49: 48 | R49: =VLOOKUP(Q49,'Option Profit Calculator'!#REF!,10,) -> 
A50: Synthetic Long Straddle w Puts | B50: Synthetics and Others | L50: 49 | R50: =VLOOKUP(Q50,'Option Profit Calculator'!#REF!,10,) -> 
A51: Synthetic Short Straddle w Calls | B51: Synthetics and Others | L51: 50 | R51: =VLOOKUP(Q51,'Option Profit Calculator'!#REF!,10,) -> 
A52: Synthetic Short Straddle w Puts | B52: Synthetics and Others | R52: =VLOOKUP(Q52,'Option Profit Calculator'!#REF!,10,) -> 
A53: Long Combo | B53: Synthetics and Others | R53: =VLOOKUP(Q53,'Option Profit Calculator'!#REF!,10,) -> 
A54: Short Combo | B54: Synthetics and Others | R54: =VLOOKUP(Q54,'Option Profit Calculator'!#REF!,10,) -> 
A55: Long Box | B55: Synthetics and Others | R55: =VLOOKUP(Q55,'Option Profit Calculator'!#REF!,10,) -> 
